{"text_format":"3","workbook":"xlsx","n_sheets":93,"sheets":["Deckblatt","1.1, 1.3 (1)","1.1, 1.3 (2)","1.2 (1)","1.2 (2)","1.2 (3)","1.4 (1)","1.4 (2)","1.5 (1)","1.5 (2)","1.5 (3)","1.6, 1.7 (1)","1.6, 1.7 (2)","1.6, 1.7 (3)","1.9","1.10","1.11","2.1 (1)","2.1 (2)","2.1 (3)","2.2 (1)","2.2 (2)","2.3 (1)","2.3 (2)","2.3 (3)","2.3 (4)","2.3 (5)","2.3 (6)","2.3 (7)","2.3 (8)","2.3 (9)","2.3 (10)","2.4 (1)","2.4 (2)","2.5 (1)","2.5 (2)","2.5 (3)","2.5 (4)","2.5 (5)","2.6","3.1 (1)","3.1 (2)","3.2 (1)","3.2 (2)","3.3 (1)","3.3 (2)","3.3 (3)","3.4 (1)","3.4 (2)","3.4 Stadtfahrten","3.5 (1)","3.5 (2)","3.5 (3)","3.5 (4)","3.6 (1)","3.6 (2)","3.7 (1)","3.7 (2)","3.7 (3)","3.7 (4)","3.8","4.1 (1)","4.1 (2)","4.1 (3)","4.1 (4)","4.1 (5)","4.1 (6)","4.2","5.1 (1)","5.1 (2)","5.1 (3)","5.1 (4)","5.1 (5)","5.1 (6)","5.1 (7)","5.1 (8)","5.1 (9)","5.1 (10)","5.1 (11)","5.1 (12)","5.2 (1)","5.2 (2)","5.2 (3)","5.2 (4)","5.2 (5)","5.2 (6)","5.2 (7)","Personalausg. (1)","Personalausg. (2)","Personalausg. (3)","Personalausg. (4)","Personalausg. (5)","Personalausg. (6)"],"not_rendered":{"defined_names":93,"comments":3},"read":"whole","date_system":"1900"}

{"sheet":"Deckblatt","index":0,"n_rows":49,"n_cols":17,"rows_kept":49,"merged":[[3,0,3,8],[3,10,3,15],[4,0,5,8],[5,10,6,15],[6,0,6,8],[8,13,8,15],[9,16,10,16],[10,0,10,12],[10,13,10,15],[11,0,24,0],[11,2,12,3],[11,13,12,15],[11,16,12,16],[13,13,13,15],[14,13,14,15],[15,13,15,15],[16,13,16,15],[17,2,17,12],[17,13,17,15],[18,2,18,12],[18,13,18,15],[19,2,19,12],[19,13,19,15],[20,2,20,12],[20,13,20,15],[21,2,21,12],[21,13,21,15],[22,13,22,15],[23,13,23,15],[24,13,24,15],[25,0,31,0],[25,2,25,12],[25,13,25,15],[26,2,26,12],[26,13,26,15],[27,2,27,12],[27,13,27,15],[28,2,28,12],[28,13,28,15],[29,2,29,12],[29,13,29,15],[30,2,30,12],[30,13,30,15],[31,13,31,15],[32,0,40,0],[32,13,32,15],[33,13,33,15],[34,2,34,12],[34,13,34,15],[35,2,35,12],[35,13,35,15],[36,2,36,12],[36,13,36,15],[37,2,37,12],[37,13,37,15],[38,2,38,12],[38,13,38,15],[39,2,39,12],[39,13,39,15],[40,13,40,15],[41,0,42,0],[41,2,41,12],[41,13,41,15],[42,2,42,12],[42,13,42,15],[43,0,44,0],[43,13,43,15],[44,2,44,12],[44,13,44,15],[45,13,45,15],[46,13,46,15],[47,13,47,15],[48,0,48,15]]}
["Landeshauptstadt Dresden - Jugendamt",{"$nulls":14},"Förderung von Trägern der freien Jugendhilfe 2020"]
[]
["Zuwendungsempfänger",{"$nulls":9},"Aktenzeichen:"]
[]
[{"$nulls":10},"Angebotsbezeichnung:"]
[]
[]
[]
[{"$nulls":3},"Anlage zum Verwendungsnachweis",{"$nulls":9},2020]
[{"$nulls":3},"Belegaufstellung",{"$nulls":9},"Jahr",null,null,"Anzahl der Blätter zum Erfassen der Ausgaben"]
["Ausgaben",{"$nulls":12},"EUR"]
["1. Gebäude-/Bewirtschaftungsausgaben","1.1","Miete\n(nur f. Flächen, die vom Angebot genutzt werden)",null,"Kaltmiete",{"$nulls":8},{"$f":"SUM('1.1, 1.3 (1):1.1, 1.3 (2)'!E40)","v":{"v":0,"d":"0.00"}},null,null,2]
[{"$nulls":4},"Betriebskosten "]
[null,"1.2","weitere Betriebskosten einschl. Medien",{"$nulls":10},{"$f":"SUM('1.2 (1):1.2 (3)'!E41)","v":{"v":0,"d":"0.00"}},null,null,3]
[null,"1.3","Gebäudepacht/Erbbauzins",{"$nulls":10},{"$f":"SUM('1.1, 1.3 (1):1.1, 1.3 (2)'!F40)","v":{"v":0,"d":"0.00"}},null,null,2]
[null,"1.4.1","Nutzungsentgelt für fremde Räume",{"$nulls":10},{"$f":"SUM('1.4 (1):1.4 (2)'!E39)","v":{"v":0,"d":"0.00"}},null,null,2]
[null,"1.4.2","Nutzungsentgelt für eigene Räume ",{"$nulls":10},{"$f":"'1.4 (1)'!F8+'1.4 (2)'!F8","v":{"v":0,"d":"0.00"}},null,null,2]
[null,"1.5","Reinigungskosten/Hausverbrauchsmaterial/Müllentsorgung",{"$nulls":10},{"$f":"SUM('1.5 (1):1.5 (3)'!E39)","v":{"v":0,"d":"0.00"}},null,null,3]
[null,"1.6","Erhaltungsaufwand/Reparaturkosten bewegliche Sachen",{"$nulls":10},{"$f":"SUM('1.6, 1.7 (1):1.6, 1.7 (3)'!E41)","v":{"v":0,"d":"0.00"}},null,null,3]
[null,"1.7","Werterhaltung/Reparaturkosten Räume/Grundstück",{"$nulls":10},{"$f":"SUM('1.6, 1.7 (1):1.6, 1.7 (3)'!F41)","v":{"v":0,"d":"0.00"}},null,null,3]
[null,"1.8","Abschreibungen auf Gebäude (ggf. anteilig entsprechend der Nutzungsfläche)                                                                                            ",{"$nulls":13},"Berechnung siehe Verwendungsnachweisformular"]
[null,"1.9","Gebühren/Beiträge/Steuern/ Versicherungen Gebäude/Inventar       ",{"$nulls":10},{"$f":"SUM('1.9'!E40)","v":{"v":0,"d":"0.00"}},null,null,1]
[null,"1.10","Reinigungsdienste",{"$nulls":10},{"$f":"SUM('1.10'!E40)","v":{"v":0,"d":"0.00"}},null,null,1]
[null,"1.11"," Hausmeisterdienste",{"$nulls":10},{"$f":"SUM('1.11'!E40)","v":{"v":0,"d":"0.00"}},null,null,1]
[{"$nulls":12},"Summe 1.",{"$f":"SUM(N12:P24)","v":0}]
["2. Ausgaben im Rahmen der sozialpäd. Arbeit","2.1","Verbrauchsmaterialien, geringwert. Wirtschaftsgüter und bewegliche Sachen für die inhaltliche Arbeit",{"$nulls":10},{"$f":"SUM('2.1 (1):2.1 (3)'!E42)","v":{"v":0,"d":"0.00"}},null,null,3]
[null,"2.2","Eintrittsgelder, Fahrtkosten für spontane Gruppenaktivitäten außer Haus",{"$nulls":10},{"$f":"SUM('2.2 (1):2.2 (2)'!E41)","v":{"v":0,"d":"0.00"}},null,null,2]
[null,"2.3","Ausgaben für Feste/Veranstaltungen (inkl. Honorar)",{"$nulls":10},{"$f":"SUM('2.3 (1):2.3 (10)'!Z36)","v":{"v":0,"d":"0.00"}},null,null,10]
[null,"2.4","Honorare für Künstler/-innen und/oder Einzelprojektleitung\n(nicht für zeitlich begrenzte Maßnahmen, Feste/Veranstaltungen)",{"$nulls":10},{"$f":"SUM('2.4 (1):2.4 (2)'!F29)","v":{"v":0,"d":"0.00"}},null,null,2]
[null,"2.5","Lebensmittel für die päd. Arbeit  (keine Verpflegungskosten)",{"$nulls":10},{"$f":"SUM('2.5 (1):2.5 (5)'!E27)","v":{"v":0,"d":"0.00"}},null,null,5]
[null,"2.6","sonstige Ausgaben im Rahmen der sozialpädagogischen Arbeit \n(im Rahmen der Antragstellung)",{"$nulls":10},{"$f":"SUM('2.6'!E42)","v":{"v":0,"d":"0.00"}},null,null,1]
[{"$nulls":12},"Summe 2.",{"$f":"SUM(N26:P31)","v":0}]
["3. weitere Sachausgaben","3.1","Telekommunikation, Internetnutzung",{"$nulls":10},{"$f":"SUM('3.1 (1):3.1 (2)'!E36)","v":{"v":0,"d":"0.00"}},null,null,2]
[null,"3.2","Geringwert. Wirtschaftsgüter und bewegliche Sachen (ausgenommen 2.1)",{"$nulls":10},{"$f":"SUM('3.2 (1):3.2 (2)'!E43)","v":{"v":0,"d":"0.00"}},null,null,2]
[null,"3.3","Ausgaben für Dienst-Kfz  (i. d. R. anteilig entsprechend dem Nutzungsanteil für das Angebot)",{"$nulls":10},{"$f":"SUM('3.3 (1):3.3 (3)'!F30)","v":{"v":0,"d":"0.00"}},null,null,3]
[null,"3.4","Dienstgänge: \nFahrtkostenerstattung Nutzung Privat-Kfz / Stadtfahrten (Fahrkarten)",null,"Privat-Kfz","überwiegende Nutzung                                für das Angebot?",{"$nulls":7},{"$f":"'3.4 (1)'!G28+'3.4 (2)'!G28+'3.4 Stadtfahrten'!E43","v":{"v":0,"d":"0.00"}},null,null,3]
[null,"3.5","Fort- u. Weiterbildungskosten (einschl. Reise- und Übernachtungskosten), Ausgaben für Fachtagungen/Supervision für haupt- und nebenberufliche Mitarbeiter/-innen",{"$nulls":10},{"$f":"SUM('3.5 (1):3.5 (4)'!E22)","v":{"v":0,"d":"0.00"}},null,null,4]
[null,"3.6","Ausgaben für Freiwilligendienste/Ausbildungsvergütung für angehende Fachkräfte",{"$nulls":10},{"$f":"SUM('3.6 (1):3.6 (2)'!F25)","v":{"v":0,"d":"0.00"}},null,null,2]
[null,"3.7","Aufwandsentschädigung Ehrenamtliche/Praktikanten",{"$nulls":10},{"$f":"SUM('3.7 (1):3.7 (4)'!F21)","v":{"v":0,"d":"0.00"}},null,null,4]
[null,"3.8","sonstige Ausgaben (im Rahmen der Antragstellung)",{"$nulls":10},{"$f":"SUM('3.8'!E32)","v":{"v":0,"d":"0.00"}},null,null,1]
[{"$nulls":12},"Summe 3.",{"$f":"SUM(N33:P40)","v":0}]
["4. Verwaltung","4.1","Verwaltungsaufwendungen im Angebot (z.B. Büromaterial, Porto, öff. Bekanntmachungen, Anschaffung/Leasing/Wartung Bürotechnik)",{"$nulls":10},{"$f":"SUM('4.1 (1):4.1 (6)'!E31)","v":{"v":0,"d":"0.00"}},null,null,6]
[null,"4.2","Verwaltungsumlage (Sach- und Personalausgaben für die zentrale Verwaltung, Planung, Steuerung und Kontrolle; gilt nicht bei Geschäftsstellenförderung)",{"$nulls":10},{"$f":"SUM('4.2'!E26)","v":{"v":0,"d":"0.00"}},null,null,1]
["5. zeitlich begrenzte Maßnahmen","5.1","Bildungsmaßnahmen (BM) gesamt (Summe der Folgeblätter)",{"$nulls":10},{"$f":"SUM('5.1 (1):5.1 (12)'!F25)","v":{"v":0,"d":"0.00"}},null,null,12]
[null,"5.2","Erlebnispädagogische Maßnahmen (EPM) gesamt (Summe der Folgeblätter)",{"$nulls":10},{"$f":"SUM('5.2 (1):5.2 (7)'!F25)","v":{"v":0,"d":"0.00"}},null,null,7]
["Sachausgaben gesamt",{"$nulls":12},{"$f":"N25+N32+N41+N42+N43+N44+N45","v":{"v":0,"d":"0.00"}}]
["Personalausgaben gesamt",{"$nulls":12},{"$f":"SUM('Personalausg. (1):Personalausg. (6)'!E34)","v":{"v":0,"d":"0.00"}},null,null,6]
["Sach- und Personalausgaben gesamt",{"$nulls":12},{"$f":"N46+N47","v":{"v":0,"d":"0.00"}}]
["Belege sind nur nach Aufforderung der Bewilligungsbehörde vorzulegen. Sie müssen nicht mit Abgabe dieses Verwendungsnachweises eingereicht werden (ausgenommen Lohnjournale bzw. Entgeltabrechnungen)"]

{"sheet":"1.1, 1.3 (1)","index":1,"n_rows":40,"n_cols":6,"rows_kept":40,"merged":[[2,0,2,3],[3,0,3,5],[6,7,7,9],[7,0,8,0],[7,1,8,1],[7,2,8,2],[7,3,8,3],[7,4,7,5],[39,0,39,3]]}
["Landeshauptstadt Dresden - Jugendamt",{"$nulls":4},{"$f":"Deckblatt!P1","v":"Förderung von Trägern der freien Jugendhilfe 2020"}]
[{"$nulls":4},"AZ:",{"$f":"Deckblatt!K4","v":0}]
["Nachweis Sachausgabenbelege",{"$nulls":3},{"$f":"Deckblatt!N9","v":2020},"Blatt 1"]
["1.1 Miete (Kaltmiete, Betriebskosten gemäß Mietvertrag), 1.3 Gebäudepacht/Erbbauzins"]
["Es sind nur die Ausgaben darzustellen, die im Zusammenhang mit der für das geförderte Angebot genutzten Fläche entstanden sind."]
["Sofern in der Behörde noch nicht vorliegend, sind Mietvertrag und Raumbelegungsplan (bei anteiliger Nutzung) mit einzureichen."]
[]
["Beleg-/ Buchungs-Nr.","Tag der Zahlung","Zahlungsgrund","Zahlungsempfänger","Ausgaben (in EUR)"]
[{"$nulls":4},"Miete","Gebäudepacht, Erbbauzins"]
{"$rows_empty":30}
["gesamt",{"$nulls":3},{"$f":"SUM(E10:E39)","v":0},{"$f":"SUM(F10:F39)","v":0}]

{"sheet":"1.1, 1.3 (2)","index":2,"n_rows":40,"n_cols":6,"rows_kept":40,"merged":[[2,0,2,3],[3,0,3,5],[6,7,7,9],[7,0,8,0],[7,1,8,1],[7,2,8,2],[7,3,8,3],[7,4,7,5],[39,0,39,3]]}
["Landeshauptstadt Dresden - Jugendamt",{"$nulls":4},{"$f":"Deckblatt!P1","v":"Förderung von Trägern der freien Jugendhilfe 2020"}]
[{"$nulls":4},"AZ:",{"$f":"Deckblatt!K4","v":0}]
["Nachweis Sachausgabenbelege",{"$nulls":3},{"$f":"Deckblatt!N9","v":2020},"Blatt 2"]
["1.1 Miete (Kaltmiete, Betriebskosten gemäß Mietvertrag), 1.3 Gebäudepacht/Erbbauzins"]
["Es sind nur die Ausgaben darzustellen, die im Zusammenhang mit der für das geförderte Angebot genutzten Fläche entstanden sind."]
["Sofern in der Behörde noch nicht vorliegend, sind Mietvertrag und Raumbelegungsplan (bei anteiliger Nutzung) mit einzureichen."]
[]
["Beleg-/ Buchungs-Nr.","Tag der Zahlung","Zahlungsgrund","Zahlungsempfänger","Ausgaben (in EUR)"]
[{"$nulls":4},"Miete","Gebäudepacht, Erbbauzins"]
{"$rows_empty":30}
["gesamt",{"$nulls":3},{"$f":"SUM(E10:E39)","v":0},{"$f":"SUM(F10:F39)","v":0}]

{"sheet":"1.2 (1)","index":3,"n_rows":41,"n_cols":5,"rows_kept":41,"merged":[[3,0,3,4],[4,6,5,8],[5,0,6,0],[5,1,6,1],[5,3,6,3],[40,0,40,3]]}
["Landeshauptstadt Dresden - Jugendamt",{"$nulls":3},{"$f":"Deckblatt!P1","v":"Förderung von Trägern der freien Jugendhilfe 2020"}]
[{"$nulls":3},"AZ:",{"$f":"Deckblatt!K4","v":0}]
[null,null,"Nachweis Sachausgabenbelege",{"$f":"Deckblatt!N9","v":2020},"Blatt 1"]
["1.2 weitere Betriebskosten einschl. Medien (Wasser/Abwasser, Strom, Gas, Heizkosten)"]
[]
["Beleg-/ Buchungs-Nr.","Tag der Zahlung","Zahlungsgrund","Zahlungsempfänger","Ausgaben "]
[null,null,"(z. B. Stromabschlag Januar)",null,"(in EUR)"]
{"$rows_empty":33}
["gesamt",{"$nulls":3},{"$f":"SUM(E8:E40)","v":0}]

{"sheet":"1.2 (2)","index":4,"n_rows":41,"n_cols":5,"rows_kept":41,"merged":[[3,0,3,4],[4,6,5,8],[5,0,6,0],[5,1,6,1],[5,3,6,3],[40,0,40,3]]}
["Landeshauptstadt Dresden - Jugendamt",{"$nulls":3},{"$f":"Deckblatt!P1","v":"Förderung von Trägern der freien Jugendhilfe 2020"}]
[{"$nulls":3},"AZ:",{"$f":"Deckblatt!K4","v":0}]
[null,null,"Nachweis Sachausgabenbelege",{"$f":"Deckblatt!N9","v":2020},"Blatt 2"]
["1.2 weitere Betriebskosten einschl. Medien (Wasser/Abwasser, Strom, Gas, Heizkosten)"]
[]
["Beleg-/ Buchungs-Nr.","Tag der Zahlung","Zahlungsgrund","Zahlungsempfänger","Ausgaben "]
[null,null,"(z. B. Stromabschlag Januar)",null,"(in EUR)"]
{"$rows_empty":33}
["gesamt",{"$nulls":3},{"$f":"SUM(E8:E40)","v":0}]

{"sheet":"1.2 (3)","index":5,"n_rows":41,"n_cols":5,"rows_kept":41,"merged":[[3,0,3,4],[4,6,5,8],[5,0,6,0],[5,1,6,1],[5,3,6,3],[40,0,40,3]]}
["Landeshauptstadt Dresden - Jugendamt",{"$nulls":3},{"$f":"Deckblatt!P1","v":"Förderung von Trägern der freien Jugendhilfe 2020"}]
[{"$nulls":3},"AZ:",{"$f":"Deckblatt!K4","v":0}]
[null,null,"Nachweis Sachausgabenbelege",{"$f":"Deckblatt!N9","v":2020},"Blatt 3"]
["1.2 weitere Betriebskosten einschl. Medien (Wasser/Abwasser, Strom, Gas, Heizkosten)"]
[]
["Beleg-/ Buchungs-Nr.","Tag der Zahlung","Zahlungsgrund","Zahlungsempfänger","Ausgaben "]
[null,null,"(z. B. Stromabschlag Januar)",null,"(in EUR)"]
{"$rows_empty":33}
["gesamt",{"$nulls":3},{"$f":"SUM(E8:E40)","v":0}]

{"sheet":"1.4 (1)","index":6,"n_rows":39,"n_cols":6,"rows_kept":39,"merged":[[2,0,2,3],[3,0,3,5],[4,0,4,5],[5,0,6,0],[5,1,6,1],[5,3,6,3],[5,4,5,5],[38,0,38,3]]}
["Landeshauptstadt Dresden - Jugendamt",{"$nulls":4},{"$f":"Deckblatt!P1","v":"Förderung von Trägern der freien Jugendhilfe 2020"}]
[{"$nulls":4},"AZ:",{"$f":"Deckblatt!K4","v":0}]
["Nachweis Sachausgabenbelege",{"$nulls":3},{"$f":"Deckblatt!N9","v":2020},"Blatt 1"]
["1.4 Nutzungsentgelte"]
["(Nutzungsentgelte für stundenweise Nutzung von Räumen; pauschale Abgeltung aller Ausgaben; es ist ein Raumnutzungsnachweis zuführen - notwendige Angaben: welche Räume wurden genutzt, Tag der Nutzung, Anzahl der Nutzungsstunden, durch wen genutzt)"]
["Beleg-/ Buchungs-Nr.","Tag der Zahlung","Zahlungsgrund","Zahlungsempfänger","Ausgaben (in EUR)"]
[null,null,"(z. B. Angabe des genutzten Objektes)",null,"Nutzungsentgelte fremde Räume","Nutzungsentgelte eigene Räume"]
{"$rows_empty":31}
["gesamt",{"$nulls":3},{"$f":"SUM(E8:E38)","v":0},{"$f":"SUM(F8:F38)","v":0}]

{"sheet":"1.4 (2)","index":7,"n_rows":39,"n_cols":6,"rows_kept":39,"merged":[[2,0,2,3],[3,0,3,5],[4,0,4,5],[5,0,6,0],[5,1,6,1],[5,3,6,3],[5,4,5,5],[38,0,38,3]]}
["Landeshauptstadt Dresden - Jugendamt",{"$nulls":4},{"$f":"Deckblatt!P1","v":"Förderung von Trägern der freien Jugendhilfe 2020"}]
[{"$nulls":4},"AZ:",{"$f":"Deckblatt!K4","v":0}]
["Nachweis Sachausgabenbelege",{"$nulls":3},{"$f":"Deckblatt!N9","v":2020},"Blatt 2"]
["1.4 Nutzungsentgelte"]
["(Nutzungsentgelte für stundenweise Nutzung von Räumen; pauschale Abgeltung aller Ausgaben; es ist ein Raumnutzungsnachweis zuführen - notwendige Angaben: welche Räume wurden genutzt, Tag der Nutzung, Anzahl der Nutzungsstunden, durch wen genutzt)"]
["Beleg-/ Buchungs-Nr.","Tag der Zahlung","Zahlungsgrund","Zahlungsempfänger","Ausgaben (in EUR)"]
[null,null,"(z. B. Angabe des genutzten Objektes)",null,"Nutzungsentgelte fremde Räume","Nutzungsentgelte eigene Räume"]
{"$rows_empty":31}
["gesamt",{"$nulls":3},{"$f":"SUM(E8:E38)","v":0},{"$f":"SUM(F8:F38)","v":0}]

{"sheet":"1.5 (1)","index":8,"n_rows":39,"n_cols":5,"rows_kept":39,"merged":[[3,0,3,4],[5,0,6,0],[5,1,6,1],[5,3,6,3],[5,6,5,8],[38,0,38,3]]}
["Landeshauptstadt Dresden - Jugendamt",{"$nulls":3},{"$f":"Deckblatt!P1","v":"Förderung von Trägern der freien Jugendhilfe 2020"}]
[{"$nulls":3},"AZ:",{"$f":"Deckblatt!K4","v":0}]
[null,null,"Nachweis Sachausgabenbelege",{"$f":"Deckblatt!N9","v":2020},"Blatt 1"]
["1.5 Reinigungskosten, Hausverbrauchsmaterial, Müllentsorgung"]
[]
["Beleg-/ Buchungs-Nr.","Tag der Zahlung","Zahlungsgrund","Zahlungsempfänger","Ausgaben "]
[null,null,"(z. B. Toilettenpapier)",null,"(in EUR)"]
{"$rows_empty":31}
["gesamt",{"$nulls":3},{"$f":"SUM(E8:E38)","v":0}]

{"sheet":"1.5 (2)","index":9,"n_rows":39,"n_cols":5,"rows_kept":39,"merged":[[3,0,3,4],[5,0,6,0],[5,1,6,1],[5,3,6,3],[5,6,5,8],[38,0,38,3]]}
["Landeshauptstadt Dresden - Jugendamt",{"$nulls":3},{"$f":"Deckblatt!P1","v":"Förderung von Trägern der freien Jugendhilfe 2020"}]
[{"$nulls":3},"AZ:",{"$f":"Deckblatt!K4","v":0}]
[null,null,"Nachweis Sachausgabenbelege",{"$f":"Deckblatt!N9","v":2020},"Blatt 2"]
["1.5 Reinigungskosten, Hausverbrauchsmaterial, Müllentsorgung"]
[]
["Beleg-/ Buchungs-Nr.","Tag der Zahlung","Zahlungsgrund","Zahlungsempfänger","Ausgaben "]
[null,null,"(z. B. Toilettenpapier)",null,"(in EUR)"]
{"$rows_empty":31}
["gesamt",{"$nulls":3},{"$f":"SUM(E8:E38)","v":0}]

{"sheet":"1.5 (3)","index":10,"n_rows":39,"n_cols":5,"rows_kept":39,"merged":[[3,0,3,4],[5,0,6,0],[5,1,6,1],[5,3,6,3],[5,6,5,8],[38,0,38,3]]}
["Landeshauptstadt Dresden - Jugendamt",{"$nulls":3},{"$f":"Deckblatt!P1","v":"Förderung von Trägern der freien Jugendhilfe 2020"}]
[{"$nulls":3},"AZ:",{"$f":"Deckblatt!K4","v":0}]
[null,null,"Nachweis Sachausgabenbelege",{"$f":"Deckblatt!N9","v":2020},"Blatt 3"]
["1.5 Reinigungskosten, Hausverbrauchsmaterial, Müllentsorgung"]
[]
["Beleg-/ Buchungs-Nr.","Tag der Zahlung","Zahlungsgrund","Zahlungsempfänger","Ausgaben "]
[null,null,"(z. B. Toilettenpapier)",null,"(in EUR)"]
{"$rows_empty":31}
["gesamt",{"$nulls":3},{"$f":"SUM(E8:E38)","v":0}]

{"sheet":"1.6, 1.7 (1)","index":11,"n_rows":41,"n_cols":6,"rows_kept":41,"merged":[[1,4,1,5],[2,0,2,3],[3,0,4,5],[5,0,6,0],[5,1,6,1],[5,3,6,3],[5,4,5,5],[5,7,5,9],[40,0,40,3]]}
["Landeshauptstadt Dresden - Jugendamt",{"$nulls":4},{"$f":"Deckblatt!P1","v":"Förderung von Trägern der freien Jugendhilfe 2020"}]
[{"$nulls":3},"AZ:",{"$f":"Deckblatt!K4","v":0}]
["Nachweis Sachausgabenbelege",{"$nulls":3},{"$f":"Deckblatt!N9","v":2020},"Blatt 1"]
["1.6/1.7 Erhaltungsaufwand/Reparaturkosten bewegliche Sachen und Räume/Grundstück"]
[]
["Beleg-/ Buchungs-Nr.","Tag der Zahlung","Zahlungsgrund","Zahlungsempfänger","Ausgaben (in EUR)"]
[null,null,"(z. B. Reparatur Kopierer (BS), Fenster, Wartung Alarmanlage)",null,"für bewegl. \nSachen","für Räume/\nGrundstück"]
{"$rows_empty":33}
["gesamt",{"$nulls":3},{"$f":"SUM(E8:E40)","v":0},{"$f":"SUM(F8:F40)","v":0}]

{"sheet":"1.6, 1.7 (2)","index":12,"n_rows":41,"n_cols":6,"rows_kept":41,"merged":[[1,4,1,5],[2,0,2,3],[3,0,4,5],[5,0,6,0],[5,1,6,1],[5,3,6,3],[5,4,5,5],[5,7,5,9],[40,0,40,3]]}
["Landeshauptstadt Dresden - Jugendamt",{"$nulls":4},{"$f":"Deckblatt!P1","v":"Förderung von Trägern der freien Jugendhilfe 2020"}]
[{"$nulls":3},"AZ:",{"$f":"Deckblatt!K4","v":0},{"$f":"Deckblatt!K4","v":0}]
["Nachweis Sachausgabenbelege",{"$nulls":3},{"$f":"Deckblatt!N9","v":2020},"Blatt 2"]
["1.6/1.7 Erhaltungsaufwand/Reparaturkosten bewegliche Sachen und Räume/Grundstück"]
[]
["Beleg-/ Buchungs-Nr.","Tag der Zahlung","Zahlungsgrund","Zahlungsempfänger","Ausgaben (in EUR)"]
[null,null,"(z. B. Reparatur Kopierer (BS), Fenster, Wartung Alarmanlage)",null,"für bewegl. \nSachen","für Räume/\nGrundstück"]
{"$rows_empty":33}
["gesamt",{"$nulls":3},{"$f":"SUM(E8:E40)","v":0},{"$f":"SUM(F8:F40)","v":0}]

{"sheet":"1.6, 1.7 (3)","index":13,"n_rows":41,"n_cols":6,"rows_kept":41,"merged":[[1,4,1,5],[2,0,2,3],[3,0,4,5],[5,0,6,0],[5,1,6,1],[5,3,6,3],[5,4,5,5],[5,7,5,9],[40,0,40,3]]}
["Landeshauptstadt Dresden - Jugendamt",{"$nulls":4},{"$f":"Deckblatt!P1","v":"Förderung von Trägern der freien Jugendhilfe 2020"}]
[{"$nulls":3},"AZ:",{"$f":"Deckblatt!K4","v":0}]
["Nachweis Sachausgabenbelege",{"$nulls":3},{"$f":"Deckblatt!N9","v":2020},"Blatt 3"]
["1.6/1.7 Erhaltungsaufwand/Reparaturkosten bewegliche Sachen und Räume/Grundstück"]
[]
["Beleg-/ Buchungs-Nr.","Tag der Zahlung","Zahlungsgrund","Zahlungsempfänger","Ausgaben (in EUR)"]
[null,null,"(z. B. Reparatur Kopierer (BS), Fenster, Wartung Alarmanlage)",null,"für bewegl. \nSachen","für Räume/\nGrundstück"]
{"$rows_empty":33}
["gesamt",{"$nulls":3},{"$f":"SUM(E8:E40)","v":0},{"$f":"SUM(F8:F40)","v":0}]

{"sheet":"1.9","index":14,"n_rows":40,"n_cols":5,"rows_kept":40,"merged":[[3,0,3,4],[4,0,4,4],[5,0,6,0],[5,1,6,1],[5,2,6,2],[5,3,6,3],[5,6,5,8],[39,0,39,3]]}
["Landeshauptstadt Dresden - Jugendamt",{"$nulls":3},{"$f":"Deckblatt!P1","v":"Förderung von Trägern der freien Jugendhilfe 2020"}]
[{"$nulls":3},"AZ:",{"$f":"Deckblatt!K4","v":0}]
[null,null,"Nachweis Sachausgabenbelege",{"$f":"Deckblatt!N9","v":2020}]
["1.9 Gebühren/Beiträge/Steuern/ Versicherungen Gebäude/Inventar                                                                                    "]
["Nur wenn der Zuwendungsempfänger Gebäudeeigentümer ist, können hier Ausgaben für Gebühren, Beträge, Steuern, Versicherungen (ausgenommen Inventar) geltend gemacht werden. Es sind nur die Ausgaben darzustellen, die im Zusammenhang mit der für das geförderte Angebot genutzten Fläche entstanden sind."]
["Beleg-/ Buchungs-Nr.","Tag der Zahlung","Zahlungsgrund","Zahlungsempfänger","Ausgaben"]
[{"$nulls":4},"(in Euro)"]
{"$rows_empty":32}
["gesamt",{"$nulls":3},{"$f":"SUM(E8:E39)","v":0}]

{"sheet":"1.10","index":15,"n_rows":40,"n_cols":5,"rows_kept":40,"merged":[[3,0,3,4],[4,0,4,4],[5,0,6,0],[5,1,6,1],[5,2,6,2],[5,3,6,3],[5,6,5,8],[39,0,39,3]]}
["Landeshauptstadt Dresden - Jugendamt",{"$nulls":3},{"$f":"Deckblatt!P1","v":"Förderung von Trägern der freien Jugendhilfe 2020"}]
[{"$nulls":3},"AZ:",{"$f":"Deckblatt!K4","v":0}]
[null,null,"Nachweis Sachausgabenbelege",null,{"$f":"Deckblatt!N9","v":2020}]
["1.10 Ausgaben für Reinigungsdienste"]
["Personalausgaben, die aufgrund von Arbeitsleistungen im Dienstleistungssektor (z.B. Reinigungs- und Hausmeisterdienstleistungen durch Arbeitnehmer des Zuwendungsempfängers), sind im Rahmen der Sachausgabenförderung zuwendungsfähig, sofern sie notwendig sind, um das Angebot zu bewirtschaften und der Einkauf der Dienstleistung dem Grundsatz der Wirtschaftlichkeit und Sparsamkeit widersprechen würde."]
["Beleg-/ Buchungs-Nr.","Tag der Zahlung","Zahlungsgrund","Zahlungsempfänger","Ausgaben"]
[{"$nulls":4},"(in Euro)"]
{"$rows_empty":32}
["gesamt",{"$nulls":3},{"$f":"SUM(E8:E39)","v":0}]

{"sheet":"1.11","index":16,"n_rows":40,"n_cols":5,"rows_kept":40,"merged":[[3,0,3,4],[4,0,4,4],[5,0,6,0],[5,1,6,1],[5,2,6,2],[5,3,6,3],[5,6,5,8],[39,0,39,3]]}
["Landeshauptstadt Dresden - Jugendamt",{"$nulls":3},{"$f":"Deckblatt!P1","v":"Förderung von Trägern der freien Jugendhilfe 2020"}]
[{"$nulls":3},"AZ:",{"$f":"Deckblatt!K4","v":0}]
[null,null,"Nachweis Sachausgabenbelege",null,{"$f":"Deckblatt!N9","v":2020}]
["1.11 Ausgaben für Hausmeisterdienste"]
["Personalausgaben, die aufgrund von Arbeitsleistungen im Dienstleistungssektor (z.B. Reinigungs- und Hausmeisterdienstleistungen durch Arbeitnehmer des Zuwendungsempfängers), sind im Rahmen der Sachausgabenförderung zuwendungsfähig, sofern sie notwendig sind, um das Angebot zu bewirtschaften und der Einkauf der Dienstleistung dem Grundsatz der Wirtschaftlichkeit und Sparsamkeit widersprechen würde."]
["Beleg-/ Buchungs-Nr.","Tag der Zahlung","Zahlungsgrund","Zahlungsempfänger","Ausgaben"]
[{"$nulls":4},"(in Euro)"]
{"$rows_empty":32}
["gesamt",{"$nulls":3},{"$f":"SUM(E8:E39)","v":0}]

{"sheet":"2.1 (1)","index":17,"n_rows":42,"n_cols":5,"rows_kept":42,"merged":[[41,0,41,3]]}
["Landeshauptstadt Dresden - Jugendamt",{"$nulls":3},{"$f":"Deckblatt!P1","v":"Förderung von Trägern der freien Jugendhilfe 2020"}]
[{"$nulls":3},"AZ:",{"$f":"Deckblatt!K4","v":0}]
["Nachweis Sachausgabenbelege",{"$nulls":3},"Blatt 1"]
["2.1  Verbrauchsmaterialien und bewegliche Sachen (GwG, BS)",{"$nulls":3},{"$f":"Deckblatt!N9","v":2020}]
[" für die inhaltliche Arbeit "]
["Beleg-/ Buchungs-Nr.","Tag der Zahlung","Zahlungsgrund \n(aussagekräftige Beschreibung)","Zahlungsempfänger","Ausgaben\n(in Euro)"]
{"$rows_empty":35}
["gesamt",{"$nulls":3},{"$f":"SUM(E7:E41)","v":0}]

{"sheet":"2.1 (2)","index":18,"n_rows":42,"n_cols":5,"rows_kept":42,"merged":[[41,0,41,3]]}
["Landeshauptstadt Dresden - Jugendamt",{"$nulls":3},{"$f":"Deckblatt!P1","v":"Förderung von Trägern der freien Jugendhilfe 2020"}]
[{"$nulls":3},"AZ:",{"$f":"Deckblatt!K4","v":0}]
["Nachweis Sachausgabenbelege",{"$nulls":3},"Blatt 2"]
["2.1  Verbrauchsmaterialien und bewegliche Sachen (GwG, BS)",{"$nulls":3},{"$f":"Deckblatt!N9","v":2020}]
[" für die inhaltliche Arbeit "]
["Beleg-/ Buchungs-Nr.","Tag der Zahlung","Zahlungsgrund \n(aussagekräftige Beschreibung)","Zahlungsempfänger","Ausgaben\n(in Euro)"]
{"$rows_empty":35}
["gesamt",{"$nulls":3},{"$f":"SUM(E7:E41)","v":0}]

{"sheet":"2.1 (3)","index":19,"n_rows":42,"n_cols":5,"rows_kept":42,"merged":[[41,0,41,3]]}
["Landeshauptstadt Dresden - Jugendamt",{"$nulls":3},{"$f":"Deckblatt!P1","v":"Förderung von Trägern der freien Jugendhilfe 2020"}]
[{"$nulls":3},"AZ:",{"$f":"Deckblatt!K4","v":0}]
["Nachweis Sachausgabenbelege",{"$nulls":3},"Blatt 3"]
["2.1  Verbrauchsmaterialien und bewegliche Sachen (GwG, BS)",{"$nulls":3},{"$f":"Deckblatt!N9","v":2020}]
[" für die inhaltliche Arbeit "]
["Beleg-/ Buchungs-Nr.","Tag der Zahlung","Zahlungsgrund \n(aussagekräftige Beschreibung)","Zahlungsempfänger","Ausgaben\n(in Euro)"]
{"$rows_empty":35}
["gesamt",{"$nulls":3},{"$f":"SUM(E7:E41)","v":0}]

{"sheet":"2.2 (1)","index":20,"n_rows":41,"n_cols":5,"rows_kept":41,"merged":[[4,0,4,4],[5,0,6,0],[5,1,6,1],[5,3,6,3],[5,4,6,4],[40,0,40,3]]}
["Landeshauptstadt Dresden - Jugendamt",{"$nulls":3},{"$f":"Deckblatt!P1","v":"Förderung von Trägern der freien Jugendhilfe 2020"}]
[{"$nulls":4},{"$f":"Deckblatt!K4","v":0}]
[null,"Nachweis Sachausgabenbelege",null,{"$f":"Deckblatt!N9","v":2020},"Blatt 1"]
[null,"2.2 spontane Gruppenaktivitäten außer Haus"]
["Spontane Gruppenaktivitäten außer Haus sind niedrigschwellige Kurzausflüge mit jungen Menschen, die regelmäßige Besucher eines Kinder-/Jugendhauses/-treffs sind."]
["Beleg-/ Buchungs-Nr.","Tag der Zahlung","Zahlungsgrund","Zahlungsempfänger","Ausgaben\n(in Euro)"]
[null,null,"(Fahrtkosten, Eintrittsgelder)"]
{"$rows_empty":33}
["gesamt",{"$nulls":3},{"$f":"SUM(E8:E40)","v":0}]

{"sheet":"2.2 (2)","index":21,"n_rows":41,"n_cols":5,"rows_kept":41,"merged":[[4,0,4,4],[5,0,6,0],[5,1,6,1],[5,3,6,3],[5,4,6,4],[40,0,40,3]]}
["Landeshauptstadt Dresden - Jugendamt",{"$nulls":3},{"$f":"Deckblatt!P1","v":"Förderung von Trägern der freien Jugendhilfe 2020"}]
[{"$nulls":4},{"$f":"Deckblatt!K4","v":0}]
[null,"Nachweis Sachausgabenbelege",null,{"$f":"Deckblatt!N9","v":2020},"Blatt 2"]
[null,"2.2 spontane Gruppenaktivitäten außer Haus"]
["Spontane Gruppenaktivitäten außer Haus sind niedrigschwellige Kurzausflüge mit jungen Menschen, die regelmäßige Besucher eines Kinder-/Jugendhauses/-treffs sind."]
["Beleg-/ Buchungs-Nr.","Tag der Zahlung","Zahlungsgrund","Zahlungsempfänger","Ausgaben\n(in Euro)"]
[null,null,"(Fahrtkosten, Eintrittsgelder)"]
{"$rows_empty":33}
["gesamt",{"$nulls":3},{"$f":"SUM(E8:E40)","v":0}]

{"sheet":"2.3 (1)","index":22,"n_rows":36,"n_cols":30,"rows_kept":36,"merged":[[2,20,2,23],[3,0,3,25],[5,0,5,6],[5,7,5,29],[11,0,12,4],[11,5,12,9],[11,10,12,17],[11,18,12,24],[11,25,12,29],[13,0,13,4],[13,5,13,9],[13,10,13,17],[13,18,13,24],[13,25,13,29],[14,0,14,4],[14,5,14,9],[14,10,14,17],[14,18,14,24],[14,25,14,29],[15,0,15,4],[15,5,15,9],[15,10,15,17],[15,18,15,24],[15,25,15,29],[16,0,16,4],[16,5,16,9],[16,10,16,17],[16,18,16,24],[16,25,16,29],[17,0,17,4],[17,5,17,9],[17,10,17,17],[17,18,17,24],[17,25,17,29],[18,0,18,4],[18,5,18,9],[18,10,18,17],[18,18,18,24],[18,25,18,29],[19,0,19,4],[19,5,19,9],[19,10,19,17],[19,18,19,24],[19,25,19,29],[20,0,20,4],[20,5,20,9],[20,10,20,17],[20,18,20,24],[20,25,20,29],[21,0,21,4],[21,5,21,9],[21,10,21,17],[21,18,21,24],[21,25,21,29],[22,0,22,4],[22,5,22,9],[22,10,22,17],[22,18,22,24],[22,25,22,29],[23,0,23,4],[23,5,23,9],[23,10,23,17],[23,18,23,24],[23,25,23,29],[24,0,24,4],[24,5,24,9],[24,10,24,17],[24,18,24,24],[24,25,24,29],[25,0,25,4],[25,5,25,9],[25,10,25,17],[25,18,25,24],[25,25,25,29],[26,0,26,4],[26,5,26,9],[26,10,26,17],[26,18,26,24],[26,25,26,29],[27,0,27,4],[27,5,27,9],[27,10,27,17],[27,18,27,24],[27,25,27,29],[28,0,28,4],[28,5,28,9],[28,10,28,17],[28,18,28,24],[28,25,28,29],[29,0,29,4],[29,5,29,9],[29,10,29,17],[29,18,29,24],[29,25,29,29],[30,0,30,4],[30,5,30,9],[30,10,30,17],[30,18,30,24],[30,25,30,29],[31,0,31,4],[31,5,31,9],[31,10,31,17],[31,18,31,24],[31,25,31,29],[32,0,32,4],[32,5,32,9],[32,10,32,17],[32,18,32,24],[32,25,32,29],[33,0,33,4],[33,5,33,9],[33,10,33,17],[33,18,33,24],[33,25,33,29],[34,0,34,4],[34,5,34,9],[34,10,34,17],[34,18,34,24],[34,25,34,29],[35,18,35,24],[35,25,35,29]]}
["Landeshauptstadt Dresden - Jugendamt",{"$nulls":28},{"$f":"Deckblatt!P1","v":"Förderung von Trägern der freien Jugendhilfe 2020"}]
[{"$nulls":4},"AZ:",{"$nulls":24},{"$f":"Deckblatt!K4","v":0}]
[{"$nulls":19},"Nachweis Sachausgabenbelege",{"$f":"Deckblatt!N9","v":2020}]
["2.3 Fest/Veranstaltung im Rahmen der sozialpädagogischen Arbeit",{"$nulls":25},"Nr. 1"]
[]
["Kurzbeschreibung \ndes Festes, \nder Veranstaltung:"]
[{"$nulls":7},"(Es sind nur die Feste/Veranstaltungen zuwendungsfähig, die öffentlich sind.)"]
[]
["Zutreffendes ankreuzen:",{"$nulls":9},"50-100 TN*",{"$nulls":4},"101-300 TN",{"$nulls":4},"301-500 TN",{"$nulls":4},"über 500 TN"]
[{"$nulls":8},"* Teilnehmende"]
[]
["Beleg-/ Buchungs-Nr.",{"$nulls":4},"Tag der Zahlung",{"$nulls":4},"Zahlungsgrund\n(Benennung der einzelnen Ausgaben)",{"$nulls":7},"Zahlungsempfänger",{"$nulls":6},"Ausgaben\nin Euro"]
{"$rows_empty":23}
[{"$nulls":18},"gesamt",{"$nulls":6},{"$f":"SUM(Z14:AD35)","v":0}]

{"sheet":"2.3 (2)","index":23,"n_rows":36,"n_cols":30,"rows_kept":36,"merged":[[2,20,2,23],[3,0,3,25],[5,0,5,6],[5,7,5,29],[11,0,12,4],[11,5,12,9],[11,10,12,17],[11,18,12,24],[11,25,12,29],[13,0,13,4],[13,5,13,9],[13,10,13,17],[13,18,13,24],[13,25,13,29],[14,0,14,4],[14,5,14,9],[14,10,14,17],[14,18,14,24],[14,25,14,29],[15,0,15,4],[15,5,15,9],[15,10,15,17],[15,18,15,24],[15,25,15,29],[16,0,16,4],[16,5,16,9],[16,10,16,17],[16,18,16,24],[16,25,16,29],[17,0,17,4],[17,5,17,9],[17,10,17,17],[17,18,17,24],[17,25,17,29],[18,0,18,4],[18,5,18,9],[18,10,18,17],[18,18,18,24],[18,25,18,29],[19,0,19,4],[19,5,19,9],[19,10,19,17],[19,18,19,24],[19,25,19,29],[20,0,20,4],[20,5,20,9],[20,10,20,17],[20,18,20,24],[20,25,20,29],[21,0,21,4],[21,5,21,9],[21,10,21,17],[21,18,21,24],[21,25,21,29],[22,0,22,4],[22,5,22,9],[22,10,22,17],[22,18,22,24],[22,25,22,29],[23,0,23,4],[23,5,23,9],[23,10,23,17],[23,18,23,24],[23,25,23,29],[24,0,24,4],[24,5,24,9],[24,10,24,17],[24,18,24,24],[24,25,24,29],[25,0,25,4],[25,5,25,9],[25,10,25,17],[25,18,25,24],[25,25,25,29],[26,0,26,4],[26,5,26,9],[26,10,26,17],[26,18,26,24],[26,25,26,29],[27,0,27,4],[27,5,27,9],[27,10,27,17],[27,18,27,24],[27,25,27,29],[28,0,28,4],[28,5,28,9],[28,10,28,17],[28,18,28,24],[28,25,28,29],[29,0,29,4],[29,5,29,9],[29,10,29,17],[29,18,29,24],[29,25,29,29],[30,0,30,4],[30,5,30,9],[30,10,30,17],[30,18,30,24],[30,25,30,29],[31,0,31,4],[31,5,31,9],[31,10,31,17],[31,18,31,24],[31,25,31,29],[32,0,32,4],[32,5,32,9],[32,10,32,17],[32,18,32,24],[32,25,32,29],[33,0,33,4],[33,5,33,9],[33,10,33,17],[33,18,33,24],[33,25,33,29],[34,0,34,4],[34,5,34,9],[34,10,34,17],[34,18,34,24],[34,25,34,29],[35,18,35,24],[35,25,35,29]]}
["Landeshauptstadt Dresden - Jugendamt",{"$nulls":28},{"$f":"Deckblatt!P1","v":"Förderung von Trägern der freien Jugendhilfe 2020"}]
[{"$nulls":4},"AZ:",{"$nulls":24},{"$f":"Deckblatt!K4","v":0}]
[{"$nulls":19},"Nachweis Sachausgabenbelege",{"$f":"Deckblatt!N9","v":2020}]
["2.3 Fest/Veranstaltung im Rahmen der sozialpädagogischen Arbeit",{"$nulls":25},"Nr. 2"]
[]
["Kurzbeschreibung \ndes Festes, \nder Veranstaltung:"]
[{"$nulls":7},"(Es sind nur die Feste/Veranstaltungen zuwendungsfähig, die öffentlich sind.)"]
[]
["Zutreffendes ankreuzen:",{"$nulls":9},"50-100 TN*",{"$nulls":4},"101-300 TN",{"$nulls":4},"301-500 TN",{"$nulls":4},"über 500 TN"]
[{"$nulls":8},"* Teilnehmende"]
[]
["Beleg-/ Buchungs-Nr.",{"$nulls":4},"Tag der Zahlung",{"$nulls":4},"Zahlungsgrund\n(Benennung der einzelnen Ausgaben)",{"$nulls":7},"Zahlungsempfänger",{"$nulls":6},"Ausgaben\nin Euro"]
{"$rows_empty":23}
[{"$nulls":18},"gesamt",{"$nulls":6},{"$f":"SUM(Z14:AD35)","v":0}]

{"sheet":"2.3 (3)","index":24,"n_rows":36,"n_cols":30,"rows_kept":36,"merged":[[2,20,2,23],[3,0,3,25],[5,0,5,6],[5,7,5,29],[11,0,12,4],[11,5,12,9],[11,10,12,17],[11,18,12,24],[11,25,12,29],[13,0,13,4],[13,5,13,9],[13,10,13,17],[13,18,13,24],[13,25,13,29],[14,0,14,4],[14,5,14,9],[14,10,14,17],[14,18,14,24],[14,25,14,29],[15,0,15,4],[15,5,15,9],[15,10,15,17],[15,18,15,24],[15,25,15,29],[16,0,16,4],[16,5,16,9],[16,10,16,17],[16,18,16,24],[16,25,16,29],[17,0,17,4],[17,5,17,9],[17,10,17,17],[17,18,17,24],[17,25,17,29],[18,0,18,4],[18,5,18,9],[18,10,18,17],[18,18,18,24],[18,25,18,29],[19,0,19,4],[19,5,19,9],[19,10,19,17],[19,18,19,24],[19,25,19,29],[20,0,20,4],[20,5,20,9],[20,10,20,17],[20,18,20,24],[20,25,20,29],[21,0,21,4],[21,5,21,9],[21,10,21,17],[21,18,21,24],[21,25,21,29],[22,0,22,4],[22,5,22,9],[22,10,22,17],[22,18,22,24],[22,25,22,29],[23,0,23,4],[23,5,23,9],[23,10,23,17],[23,18,23,24],[23,25,23,29],[24,0,24,4],[24,5,24,9],[24,10,24,17],[24,18,24,24],[24,25,24,29],[25,0,25,4],[25,5,25,9],[25,10,25,17],[25,18,25,24],[25,25,25,29],[26,0,26,4],[26,5,26,9],[26,10,26,17],[26,18,26,24],[26,25,26,29],[27,0,27,4],[27,5,27,9],[27,10,27,17],[27,18,27,24],[27,25,27,29],[28,0,28,4],[28,5,28,9],[28,10,28,17],[28,18,28,24],[28,25,28,29],[29,0,29,4],[29,5,29,9],[29,10,29,17],[29,18,29,24],[29,25,29,29],[30,0,30,4],[30,5,30,9],[30,10,30,17],[30,18,30,24],[30,25,30,29],[31,0,31,4],[31,5,31,9],[31,10,31,17],[31,18,31,24],[31,25,31,29],[32,0,32,4],[32,5,32,9],[32,10,32,17],[32,18,32,24],[32,25,32,29],[33,0,33,4],[33,5,33,9],[33,10,33,17],[33,18,33,24],[33,25,33,29],[34,0,34,4],[34,5,34,9],[34,10,34,17],[34,18,34,24],[34,25,34,29],[35,18,35,24],[35,25,35,29]]}
["Landeshauptstadt Dresden - Jugendamt",{"$nulls":28},{"$f":"Deckblatt!P1","v":"Förderung von Trägern der freien Jugendhilfe 2020"}]
[{"$nulls":4},"AZ:",{"$nulls":24},{"$f":"Deckblatt!K4","v":0}]
[{"$nulls":19},"Nachweis Sachausgabenbelege",{"$f":"Deckblatt!N9","v":2020}]
["2.3 Fest/Veranstaltung im Rahmen der sozialpädagogischen Arbeit",{"$nulls":25},"Nr. 3"]
[]
["Kurzbeschreibung \ndes Festes, \nder Veranstaltung:"]
[{"$nulls":7},"(Es sind nur die Feste/Veranstaltungen zuwendungsfähig, die öffentlich sind.)"]
[]
["Zutreffendes ankreuzen:",{"$nulls":9},"50-100 TN*",{"$nulls":4},"101-300 TN",{"$nulls":4},"301-500 TN",{"$nulls":4},"über 500 TN"]
[{"$nulls":8},"* Teilnehmende"]
[]
["Beleg-/ Buchungs-Nr.",{"$nulls":4},"Tag der Zahlung",{"$nulls":4},"Zahlungsgrund\n(Benennung der einzelnen Ausgaben)",{"$nulls":7},"Zahlungsempfänger",{"$nulls":6},"Ausgaben\nin Euro"]
{"$rows_empty":23}
[{"$nulls":18},"Nr. 3 gesamt",{"$nulls":6},{"$f":"SUM(Z14:AD35)","v":0}]

{"sheet":"2.3 (4)","index":25,"n_rows":36,"n_cols":30,"rows_kept":36,"merged":[[2,20,2,23],[3,0,3,25],[5,0,5,6],[5,7,5,29],[11,0,12,4],[11,5,12,9],[11,10,12,17],[11,18,12,24],[11,25,12,29],[13,0,13,4],[13,5,13,9],[13,10,13,17],[13,18,13,24],[13,25,13,29],[14,0,14,4],[14,5,14,9],[14,10,14,17],[14,18,14,24],[14,25,14,29],[15,0,15,4],[15,5,15,9],[15,10,15,17],[15,18,15,24],[15,25,15,29],[16,0,16,4],[16,5,16,9],[16,10,16,17],[16,18,16,24],[16,25,16,29],[17,0,17,4],[17,5,17,9],[17,10,17,17],[17,18,17,24],[17,25,17,29],[18,0,18,4],[18,5,18,9],[18,10,18,17],[18,18,18,24],[18,25,18,29],[19,0,19,4],[19,5,19,9],[19,10,19,17],[19,18,19,24],[19,25,19,29],[20,0,20,4],[20,5,20,9],[20,10,20,17],[20,18,20,24],[20,25,20,29],[21,0,21,4],[21,5,21,9],[21,10,21,17],[21,18,21,24],[21,25,21,29],[22,0,22,4],[22,5,22,9],[22,10,22,17],[22,18,22,24],[22,25,22,29],[23,0,23,4],[23,5,23,9],[23,10,23,17],[23,18,23,24],[23,25,23,29],[24,0,24,4],[24,5,24,9],[24,10,24,17],[24,18,24,24],[24,25,24,29],[25,0,25,4],[25,5,25,9],[25,10,25,17],[25,18,25,24],[25,25,25,29],[26,0,26,4],[26,5,26,9],[26,10,26,17],[26,18,26,24],[26,25,26,29],[27,0,27,4],[27,5,27,9],[27,10,27,17],[27,18,27,24],[27,25,27,29],[28,0,28,4],[28,5,28,9],[28,10,28,17],[28,18,28,24],[28,25,28,29],[29,0,29,4],[29,5,29,9],[29,10,29,17],[29,18,29,24],[29,25,29,29],[30,0,30,4],[30,5,30,9],[30,10,30,17],[30,18,30,24],[30,25,30,29],[31,0,31,4],[31,5,31,9],[31,10,31,17],[31,18,31,24],[31,25,31,29],[32,0,32,4],[32,5,32,9],[32,10,32,17],[32,18,32,24],[32,25,32,29],[33,0,33,4],[33,5,33,9],[33,10,33,17],[33,18,33,24],[33,25,33,29],[34,0,34,4],[34,5,34,9],[34,10,34,17],[34,18,34,24],[34,25,34,29],[35,18,35,24],[35,25,35,29]]}
["Landeshauptstadt Dresden - Jugendamt",{"$nulls":28},{"$f":"Deckblatt!P1","v":"Förderung von Trägern der freien Jugendhilfe 2020"}]
[{"$nulls":4},"AZ:",{"$nulls":24},{"$f":"Deckblatt!K4","v":0}]
[{"$nulls":19},"Nachweis Sachausgabenbelege",{"$f":"Deckblatt!N9","v":2020}]
["2.3 Fest/Veranstaltung im Rahmen der sozialpädagogischen Arbeit",{"$nulls":25},"Nr. 4"]
[]
["Kurzbeschreibung \ndes Festes, \nder Veranstaltung:"]
[{"$nulls":7},"(Es sind nur die Feste/Veranstaltungen zuwendungsfähig, die öffentlich sind.)"]
[]
["Zutreffendes ankreuzen:",{"$nulls":9},"50-100 TN*",{"$nulls":4},"101-300 TN",{"$nulls":4},"301-500 TN",{"$nulls":4},"über 500 TN"]
[{"$nulls":8},"* Teilnehmende"]
[]
["Beleg-/ Buchungs-Nr.",{"$nulls":4},"Tag der Zahlung",{"$nulls":4},"Zahlungsgrund\n(Benennung der einzelnen Ausgaben)",{"$nulls":7},"Zahlungsempfänger",{"$nulls":6},"Ausgaben\nin Euro"]
{"$rows_empty":23}
[{"$nulls":18},"Nr. 4 gesamt",{"$nulls":6},{"$f":"SUM(Z14:AD35)","v":0}]

{"sheet":"2.3 (5)","index":26,"n_rows":36,"n_cols":30,"rows_kept":36,"merged":[[2,20,2,23],[3,0,3,25],[5,0,5,6],[5,7,5,29],[11,0,12,4],[11,5,12,9],[11,10,12,17],[11,18,12,24],[11,25,12,29],[13,0,13,4],[13,5,13,9],[13,10,13,17],[13,18,13,24],[13,25,13,29],[14,0,14,4],[14,5,14,9],[14,10,14,17],[14,18,14,24],[14,25,14,29],[15,0,15,4],[15,5,15,9],[15,10,15,17],[15,18,15,24],[15,25,15,29],[16,0,16,4],[16,5,16,9],[16,10,16,17],[16,18,16,24],[16,25,16,29],[17,0,17,4],[17,5,17,9],[17,10,17,17],[17,18,17,24],[17,25,17,29],[18,0,18,4],[18,5,18,9],[18,10,18,17],[18,18,18,24],[18,25,18,29],[19,0,19,4],[19,5,19,9],[19,10,19,17],[19,18,19,24],[19,25,19,29],[20,0,20,4],[20,5,20,9],[20,10,20,17],[20,18,20,24],[20,25,20,29],[21,0,21,4],[21,5,21,9],[21,10,21,17],[21,18,21,24],[21,25,21,29],[22,0,22,4],[22,5,22,9],[22,10,22,17],[22,18,22,24],[22,25,22,29],[23,0,23,4],[23,5,23,9],[23,10,23,17],[23,18,23,24],[23,25,23,29],[24,0,24,4],[24,5,24,9],[24,10,24,17],[24,18,24,24],[24,25,24,29],[25,0,25,4],[25,5,25,9],[25,10,25,17],[25,18,25,24],[25,25,25,29],[26,0,26,4],[26,5,26,9],[26,10,26,17],[26,18,26,24],[26,25,26,29],[27,0,27,4],[27,5,27,9],[27,10,27,17],[27,18,27,24],[27,25,27,29],[28,0,28,4],[28,5,28,9],[28,10,28,17],[28,18,28,24],[28,25,28,29],[29,0,29,4],[29,5,29,9],[29,10,29,17],[29,18,29,24],[29,25,29,29],[30,0,30,4],[30,5,30,9],[30,10,30,17],[30,18,30,24],[30,25,30,29],[31,0,31,4],[31,5,31,9],[31,10,31,17],[31,18,31,24],[31,25,31,29],[32,0,32,4],[32,5,32,9],[32,10,32,17],[32,18,32,24],[32,25,32,29],[33,0,33,4],[33,5,33,9],[33,10,33,17],[33,18,33,24],[33,25,33,29],[34,0,34,4],[34,5,34,9],[34,10,34,17],[34,18,34,24],[34,25,34,29],[35,18,35,24],[35,25,35,29]]}
["Landeshauptstadt Dresden - Jugendamt",{"$nulls":28},{"$f":"Deckblatt!P1","v":"Förderung von Trägern der freien Jugendhilfe 2020"}]
[{"$nulls":4},"AZ:",{"$nulls":24},{"$f":"Deckblatt!K4","v":0}]
[{"$nulls":19},"Nachweis Sachausgabenbelege",{"$f":"Deckblatt!N9","v":2020}]
["2.3 Fest/Veranstaltung im Rahmen der sozialpädagogischen Arbeit",{"$nulls":25},"Nr. 5"]
[]
["Kurzbeschreibung \ndes Festes, \nder Veranstaltung:"]
[{"$nulls":7},"(Es sind nur die Feste/Veranstaltungen zuwendungsfähig, die öffentlich sind.)"]
[]
["Zutreffendes ankreuzen:",{"$nulls":9},"50-100 TN*",{"$nulls":4},"101-300 TN",{"$nulls":4},"301-500 TN",{"$nulls":4},"über 500 TN"]
[{"$nulls":8},"* Teilnehmende"]
[]
["Beleg-/ Buchungs-Nr.",{"$nulls":4},"Tag der Zahlung",{"$nulls":4},"Zahlungsgrund\n(Benennung der einzelnen Ausgaben)",{"$nulls":7},"Zahlungsempfänger",{"$nulls":6},"Ausgaben\nin Euro"]
{"$rows_empty":23}
[{"$nulls":18},"Nr. 5 gesamt",{"$nulls":6},{"$f":"SUM(Z14:AD35)","v":0}]

{"sheet":"2.3 (6)","index":27,"n_rows":36,"n_cols":30,"rows_kept":36,"merged":[[2,20,2,23],[3,0,3,25],[5,0,5,6],[5,7,5,29],[11,0,12,4],[11,5,12,9],[11,10,12,17],[11,18,12,24],[11,25,12,29],[13,0,13,4],[13,5,13,9],[13,10,13,17],[13,18,13,24],[13,25,13,29],[14,0,14,4],[14,5,14,9],[14,10,14,17],[14,18,14,24],[14,25,14,29],[15,0,15,4],[15,5,15,9],[15,10,15,17],[15,18,15,24],[15,25,15,29],[16,0,16,4],[16,5,16,9],[16,10,16,17],[16,18,16,24],[16,25,16,29],[17,0,17,4],[17,5,17,9],[17,10,17,17],[17,18,17,24],[17,25,17,29],[18,0,18,4],[18,5,18,9],[18,10,18,17],[18,18,18,24],[18,25,18,29],[19,0,19,4],[19,5,19,9],[19,10,19,17],[19,18,19,24],[19,25,19,29],[20,0,20,4],[20,5,20,9],[20,10,20,17],[20,18,20,24],[20,25,20,29],[21,0,21,4],[21,5,21,9],[21,10,21,17],[21,18,21,24],[21,25,21,29],[22,0,22,4],[22,5,22,9],[22,10,22,17],[22,18,22,24],[22,25,22,29],[23,0,23,4],[23,5,23,9],[23,10,23,17],[23,18,23,24],[23,25,23,29],[24,0,24,4],[24,5,24,9],[24,10,24,17],[24,18,24,24],[24,25,24,29],[25,0,25,4],[25,5,25,9],[25,10,25,17],[25,18,25,24],[25,25,25,29],[26,0,26,4],[26,5,26,9],[26,10,26,17],[26,18,26,24],[26,25,26,29],[27,0,27,4],[27,5,27,9],[27,10,27,17],[27,18,27,24],[27,25,27,29],[28,0,28,4],[28,5,28,9],[28,10,28,17],[28,18,28,24],[28,25,28,29],[29,0,29,4],[29,5,29,9],[29,10,29,17],[29,18,29,24],[29,25,29,29],[30,0,30,4],[30,5,30,9],[30,10,30,17],[30,18,30,24],[30,25,30,29],[31,0,31,4],[31,5,31,9],[31,10,31,17],[31,18,31,24],[31,25,31,29],[32,0,32,4],[32,5,32,9],[32,10,32,17],[32,18,32,24],[32,25,32,29],[33,0,33,4],[33,5,33,9],[33,10,33,17],[33,18,33,24],[33,25,33,29],[34,0,34,4],[34,5,34,9],[34,10,34,17],[34,18,34,24],[34,25,34,29],[35,18,35,24],[35,25,35,29]]}
["Landeshauptstadt Dresden - Jugendamt",{"$nulls":28},{"$f":"Deckblatt!P1","v":"Förderung von Trägern der freien Jugendhilfe 2020"}]
[{"$nulls":4},"AZ:",{"$nulls":24},{"$f":"Deckblatt!K4","v":0}]
[{"$nulls":19},"Nachweis Sachausgabenbelege",{"$f":"Deckblatt!N9","v":2020}]
["2.3 Fest/Veranstaltung im Rahmen der sozialpädagogischen Arbeit",{"$nulls":25},"Nr. 6"]
[]
["Kurzbeschreibung \ndes Festes, \nder Veranstaltung:"]
[{"$nulls":7},"(Es sind nur die Feste/Veranstaltungen zuwendungsfähig, die öffentlich sind.)"]
[]
["Zutreffendes ankreuzen:",{"$nulls":9},"50-100 TN*",{"$nulls":4},"101-300 TN",{"$nulls":4},"301-500 TN",{"$nulls":4},"über 500 TN"]
[{"$nulls":8},"* Teilnehmende"]
[]
["Beleg-/ Buchungs-Nr.",{"$nulls":4},"Tag der Zahlung",{"$nulls":4},"Zahlungsgrund\n(Benennung der einzelnen Ausgaben)",{"$nulls":7},"Zahlungsempfänger",{"$nulls":6},"Ausgaben\nin Euro"]
{"$rows_empty":23}
[{"$nulls":18},"Nr. 6 gesamt",{"$nulls":6},{"$f":"SUM(Z14:AD35)","v":0}]

{"sheet":"2.3 (7)","index":28,"n_rows":36,"n_cols":30,"rows_kept":36,"merged":[[2,20,2,23],[3,0,3,25],[5,0,5,6],[5,7,5,29],[11,0,12,4],[11,5,12,9],[11,10,12,17],[11,18,12,24],[11,25,12,29],[13,0,13,4],[13,5,13,9],[13,10,13,17],[13,18,13,24],[13,25,13,29],[14,0,14,4],[14,5,14,9],[14,10,14,17],[14,18,14,24],[14,25,14,29],[15,0,15,4],[15,5,15,9],[15,10,15,17],[15,18,15,24],[15,25,15,29],[16,0,16,4],[16,5,16,9],[16,10,16,17],[16,18,16,24],[16,25,16,29],[17,0,17,4],[17,5,17,9],[17,10,17,17],[17,18,17,24],[17,25,17,29],[18,0,18,4],[18,5,18,9],[18,10,18,17],[18,18,18,24],[18,25,18,29],[19,0,19,4],[19,5,19,9],[19,10,19,17],[19,18,19,24],[19,25,19,29],[20,0,20,4],[20,5,20,9],[20,10,20,17],[20,18,20,24],[20,25,20,29],[21,0,21,4],[21,5,21,9],[21,10,21,17],[21,18,21,24],[21,25,21,29],[22,0,22,4],[22,5,22,9],[22,10,22,17],[22,18,22,24],[22,25,22,29],[23,0,23,4],[23,5,23,9],[23,10,23,17],[23,18,23,24],[23,25,23,29],[24,0,24,4],[24,5,24,9],[24,10,24,17],[24,18,24,24],[24,25,24,29],[25,0,25,4],[25,5,25,9],[25,10,25,17],[25,18,25,24],[25,25,25,29],[26,0,26,4],[26,5,26,9],[26,10,26,17],[26,18,26,24],[26,25,26,29],[27,0,27,4],[27,5,27,9],[27,10,27,17],[27,18,27,24],[27,25,27,29],[28,0,28,4],[28,5,28,9],[28,10,28,17],[28,18,28,24],[28,25,28,29],[29,0,29,4],[29,5,29,9],[29,10,29,17],[29,18,29,24],[29,25,29,29],[30,0,30,4],[30,5,30,9],[30,10,30,17],[30,18,30,24],[30,25,30,29],[31,0,31,4],[31,5,31,9],[31,10,31,17],[31,18,31,24],[31,25,31,29],[32,0,32,4],[32,5,32,9],[32,10,32,17],[32,18,32,24],[32,25,32,29],[33,0,33,4],[33,5,33,9],[33,10,33,17],[33,18,33,24],[33,25,33,29],[34,0,34,4],[34,5,34,9],[34,10,34,17],[34,18,34,24],[34,25,34,29],[35,18,35,24],[35,25,35,29]]}
["Landeshauptstadt Dresden - Jugendamt",{"$nulls":28},{"$f":"Deckblatt!P1","v":"Förderung von Trägern der freien Jugendhilfe 2020"}]
[{"$nulls":4},"AZ:",{"$nulls":24},{"$f":"Deckblatt!K4","v":0}]
[{"$nulls":19},"Nachweis Sachausgabenbelege",{"$f":"Deckblatt!N9","v":2020}]
["2.3 Fest/Veranstaltung im Rahmen der sozialpädagogischen Arbeit",{"$nulls":25},"Nr. 7"]
[]
["Kurzbeschreibung \ndes Festes, \nder Veranstaltung:"]
[{"$nulls":7},"(Es sind nur die Feste/Veranstaltungen zuwendungsfähig, die öffentlich sind.)"]
[]
["Zutreffendes ankreuzen:",{"$nulls":9},"50-100 TN*",{"$nulls":4},"101-300 TN",{"$nulls":4},"301-500 TN",{"$nulls":4},"über 500 TN"]
[{"$nulls":8},"* Teilnehmende"]
[]
["Beleg-/ Buchungs-Nr.",{"$nulls":4},"Tag der Zahlung",{"$nulls":4},"Zahlungsgrund\n(Benennung der einzelnen Ausgaben)",{"$nulls":7},"Zahlungsempfänger",{"$nulls":6},"Ausgaben\nin Euro"]
{"$rows_empty":23}
[{"$nulls":18},"Nr. 7 gesamt",{"$nulls":6},{"$f":"SUM(Z14:AD35)","v":0}]

{"sheet":"2.3 (8)","index":29,"n_rows":36,"n_cols":30,"rows_kept":36,"merged":[[2,20,2,23],[3,0,3,25],[5,0,5,6],[5,7,5,29],[11,0,12,4],[11,5,12,9],[11,10,12,17],[11,18,12,24],[11,25,12,29],[13,0,13,4],[13,5,13,9],[13,10,13,17],[13,18,13,24],[13,25,13,29],[14,0,14,4],[14,5,14,9],[14,10,14,17],[14,18,14,24],[14,25,14,29],[15,0,15,4],[15,5,15,9],[15,10,15,17],[15,18,15,24],[15,25,15,29],[16,0,16,4],[16,5,16,9],[16,10,16,17],[16,18,16,24],[16,25,16,29],[17,0,17,4],[17,5,17,9],[17,10,17,17],[17,18,17,24],[17,25,17,29],[18,0,18,4],[18,5,18,9],[18,10,18,17],[18,18,18,24],[18,25,18,29],[19,0,19,4],[19,5,19,9],[19,10,19,17],[19,18,19,24],[19,25,19,29],[20,0,20,4],[20,5,20,9],[20,10,20,17],[20,18,20,24],[20,25,20,29],[21,0,21,4],[21,5,21,9],[21,10,21,17],[21,18,21,24],[21,25,21,29],[22,0,22,4],[22,5,22,9],[22,10,22,17],[22,18,22,24],[22,25,22,29],[23,0,23,4],[23,5,23,9],[23,10,23,17],[23,18,23,24],[23,25,23,29],[24,0,24,4],[24,5,24,9],[24,10,24,17],[24,18,24,24],[24,25,24,29],[25,0,25,4],[25,5,25,9],[25,10,25,17],[25,18,25,24],[25,25,25,29],[26,0,26,4],[26,5,26,9],[26,10,26,17],[26,18,26,24],[26,25,26,29],[27,0,27,4],[27,5,27,9],[27,10,27,17],[27,18,27,24],[27,25,27,29],[28,0,28,4],[28,5,28,9],[28,10,28,17],[28,18,28,24],[28,25,28,29],[29,0,29,4],[29,5,29,9],[29,10,29,17],[29,18,29,24],[29,25,29,29],[30,0,30,4],[30,5,30,9],[30,10,30,17],[30,18,30,24],[30,25,30,29],[31,0,31,4],[31,5,31,9],[31,10,31,17],[31,18,31,24],[31,25,31,29],[32,0,32,4],[32,5,32,9],[32,10,32,17],[32,18,32,24],[32,25,32,29],[33,0,33,4],[33,5,33,9],[33,10,33,17],[33,18,33,24],[33,25,33,29],[34,0,34,4],[34,5,34,9],[34,10,34,17],[34,18,34,24],[34,25,34,29],[35,18,35,24],[35,25,35,29]]}
["Landeshauptstadt Dresden - Jugendamt",{"$nulls":28},{"$f":"Deckblatt!P1","v":"Förderung von Trägern der freien Jugendhilfe 2020"}]
[{"$nulls":4},"AZ:",{"$nulls":24},{"$f":"Deckblatt!K4","v":0}]
[{"$nulls":19},"Nachweis Sachausgabenbelege",{"$f":"Deckblatt!N9","v":2020}]
["2.3 Fest/Veranstaltung im Rahmen der sozialpädagogischen Arbeit",{"$nulls":25},"Nr. 8"]
[]
["Kurzbeschreibung \ndes Festes, \nder Veranstaltung:"]
[{"$nulls":7},"(Es sind nur die Feste/Veranstaltungen zuwendungsfähig, die öffentlich sind.)"]
[]
["Zutreffendes ankreuzen:",{"$nulls":9},"50-100 TN*",{"$nulls":4},"101-300 TN",{"$nulls":4},"301-500 TN",{"$nulls":4},"über 500 TN"]
[{"$nulls":8},"* Teilnehmende"]
[]
["Beleg-/ Buchungs-Nr.",{"$nulls":4},"Tag der Zahlung",{"$nulls":4},"Zahlungsgrund\n(Benennung der einzelnen Ausgaben)",{"$nulls":7},"Zahlungsempfänger",{"$nulls":6},"Ausgaben\nin Euro"]
{"$rows_empty":23}
[{"$nulls":18},"Nr. 8 gesamt",{"$nulls":6},{"$f":"SUM(Z14:AD35)","v":0}]

{"sheet":"2.3 (9)","index":30,"n_rows":36,"n_cols":30,"rows_kept":36,"merged":[[2,20,2,23],[3,0,3,25],[5,0,5,6],[5,7,5,29],[11,0,12,4],[11,5,12,9],[11,10,12,17],[11,18,12,24],[11,25,12,29],[13,0,13,4],[13,5,13,9],[13,10,13,17],[13,18,13,24],[13,25,13,29],[14,0,14,4],[14,5,14,9],[14,10,14,17],[14,18,14,24],[14,25,14,29],[15,0,15,4],[15,5,15,9],[15,10,15,17],[15,18,15,24],[15,25,15,29],[16,0,16,4],[16,5,16,9],[16,10,16,17],[16,18,16,24],[16,25,16,29],[17,0,17,4],[17,5,17,9],[17,10,17,17],[17,18,17,24],[17,25,17,29],[18,0,18,4],[18,5,18,9],[18,10,18,17],[18,18,18,24],[18,25,18,29],[19,0,19,4],[19,5,19,9],[19,10,19,17],[19,18,19,24],[19,25,19,29],[20,0,20,4],[20,5,20,9],[20,10,20,17],[20,18,20,24],[20,25,20,29],[21,0,21,4],[21,5,21,9],[21,10,21,17],[21,18,21,24],[21,25,21,29],[22,0,22,4],[22,5,22,9],[22,10,22,17],[22,18,22,24],[22,25,22,29],[23,0,23,4],[23,5,23,9],[23,10,23,17],[23,18,23,24],[23,25,23,29],[24,0,24,4],[24,5,24,9],[24,10,24,17],[24,18,24,24],[24,25,24,29],[25,0,25,4],[25,5,25,9],[25,10,25,17],[25,18,25,24],[25,25,25,29],[26,0,26,4],[26,5,26,9],[26,10,26,17],[26,18,26,24],[26,25,26,29],[27,0,27,4],[27,5,27,9],[27,10,27,17],[27,18,27,24],[27,25,27,29],[28,0,28,4],[28,5,28,9],[28,10,28,17],[28,18,28,24],[28,25,28,29],[29,0,29,4],[29,5,29,9],[29,10,29,17],[29,18,29,24],[29,25,29,29],[30,0,30,4],[30,5,30,9],[30,10,30,17],[30,18,30,24],[30,25,30,29],[31,0,31,4],[31,5,31,9],[31,10,31,17],[31,18,31,24],[31,25,31,29],[32,0,32,4],[32,5,32,9],[32,10,32,17],[32,18,32,24],[32,25,32,29],[33,0,33,4],[33,5,33,9],[33,10,33,17],[33,18,33,24],[33,25,33,29],[34,0,34,4],[34,5,34,9],[34,10,34,17],[34,18,34,24],[34,25,34,29],[35,18,35,24],[35,25,35,29]]}
["Landeshauptstadt Dresden - Jugendamt",{"$nulls":28},{"$f":"Deckblatt!P1","v":"Förderung von Trägern der freien Jugendhilfe 2020"}]
[{"$nulls":4},"AZ:",{"$nulls":24},{"$f":"Deckblatt!K4","v":0}]
[{"$nulls":19},"Nachweis Sachausgabenbelege",{"$f":"Deckblatt!N9","v":2020}]
["2.3 Fest/Veranstaltung im Rahmen der sozialpädagogischen Arbeit",{"$nulls":25},"Nr. 9"]
[]
["Kurzbeschreibung \ndes Festes, \nder Veranstaltung:"]
[{"$nulls":7},"(Es sind nur die Feste/Veranstaltungen zuwendungsfähig, die öffentlich sind.)"]
[]
["Zutreffendes ankreuzen:",{"$nulls":9},"50-100 TN*",{"$nulls":4},"101-300 TN",{"$nulls":4},"301-500 TN",{"$nulls":4},"über 500 TN"]
[{"$nulls":8},"* Teilnehmer/Teilnehmerinnen"]
[]
["Beleg-/ Buchungs-Nr.",{"$nulls":4},"Tag der Zahlung",{"$nulls":4},"Zahlungsgrund\n(Benennung der einzelnen Ausgaben)",{"$nulls":7},"Zahlungsempfänger",{"$nulls":6},"Ausgaben\nin Euro"]
{"$rows_empty":23}
[{"$nulls":18},"Nr. 9 gesamt",{"$nulls":6},{"$f":"SUM(Z14:AD35)","v":0}]

{"sheet":"2.3 (10)","index":31,"n_rows":36,"n_cols":30,"rows_kept":36,"merged":[[2,20,2,23],[3,0,3,25],[5,0,5,6],[5,7,5,29],[11,0,12,4],[11,5,12,9],[11,10,12,17],[11,18,12,24],[11,25,12,29],[13,0,13,4],[13,5,13,9],[13,10,13,17],[13,18,13,24],[13,25,13,29],[14,0,14,4],[14,5,14,9],[14,10,14,17],[14,18,14,24],[14,25,14,29],[15,0,15,4],[15,5,15,9],[15,10,15,17],[15,18,15,24],[15,25,15,29],[16,0,16,4],[16,5,16,9],[16,10,16,17],[16,18,16,24],[16,25,16,29],[17,0,17,4],[17,5,17,9],[17,10,17,17],[17,18,17,24],[17,25,17,29],[18,0,18,4],[18,5,18,9],[18,10,18,17],[18,18,18,24],[18,25,18,29],[19,0,19,4],[19,5,19,9],[19,10,19,17],[19,18,19,24],[19,25,19,29],[20,0,20,4],[20,5,20,9],[20,10,20,17],[20,18,20,24],[20,25,20,29],[21,0,21,4],[21,5,21,9],[21,10,21,17],[21,18,21,24],[21,25,21,29],[22,0,22,4],[22,5,22,9],[22,10,22,17],[22,18,22,24],[22,25,22,29],[23,0,23,4],[23,5,23,9],[23,10,23,17],[23,18,23,24],[23,25,23,29],[24,0,24,4],[24,5,24,9],[24,10,24,17],[24,18,24,24],[24,25,24,29],[25,0,25,4],[25,5,25,9],[25,10,25,17],[25,18,25,24],[25,25,25,29],[26,0,26,4],[26,5,26,9],[26,10,26,17],[26,18,26,24],[26,25,26,29],[27,0,27,4],[27,5,27,9],[27,10,27,17],[27,18,27,24],[27,25,27,29],[28,0,28,4],[28,5,28,9],[28,10,28,17],[28,18,28,24],[28,25,28,29],[29,0,29,4],[29,5,29,9],[29,10,29,17],[29,18,29,24],[29,25,29,29],[30,0,30,4],[30,5,30,9],[30,10,30,17],[30,18,30,24],[30,25,30,29],[31,0,31,4],[31,5,31,9],[31,10,31,17],[31,18,31,24],[31,25,31,29],[32,0,32,4],[32,5,32,9],[32,10,32,17],[32,18,32,24],[32,25,32,29],[33,0,33,4],[33,5,33,9],[33,10,33,17],[33,18,33,24],[33,25,33,29],[34,0,34,4],[34,5,34,9],[34,10,34,17],[34,18,34,24],[34,25,34,29],[35,18,35,24],[35,25,35,29]]}
["Landeshauptstadt Dresden - Jugendamt",{"$nulls":28},{"$f":"Deckblatt!P1","v":"Förderung von Trägern der freien Jugendhilfe 2020"}]
[{"$nulls":4},"AZ:",{"$nulls":24},{"$f":"Deckblatt!K4","v":0}]
[{"$nulls":19},"Nachweis Sachausgabenbelege",{"$f":"Deckblatt!N9","v":2020}]
["2.3 Fest/Veranstaltung im Rahmen der sozialpädagogischen Arbeit",{"$nulls":25},"Nr. 10"]
[]
["Kurzbeschreibung \ndes Festes, \nder Veranstaltung:"]
[{"$nulls":7},"(Es sind nur die Feste/Veranstaltungen zuwendungsfähig, die öffentlich sind.)"]
[]
["Zutreffendes ankreuzen:",{"$nulls":9},"50-100 TN*",{"$nulls":4},"101-300 TN",{"$nulls":4},"301-500 TN",{"$nulls":4},"über 500 TN"]
[{"$nulls":8},"* Teilnehmer/Teilnehmerinnen"]
[]
["Beleg-/ Buchungs-Nr.",{"$nulls":4},"Tag der Zahlung",{"$nulls":4},"Zahlungsgrund\n(Benennung der einzelnen Ausgaben)",{"$nulls":7},"Zahlungsempfänger",{"$nulls":6},"Ausgaben\nin Euro"]
{"$rows_empty":23}
[{"$nulls":18},"Nr. 10 gesamt",{"$nulls":6},{"$f":"SUM(Z14:AD35)","v":0}]

{"sheet":"2.4 (1)","index":32,"n_rows":29,"n_cols":6,"rows_kept":29,"merged":[[2,0,2,3],[3,0,3,5],[4,0,5,5],[6,0,7,0],[6,1,7,1],[6,2,7,2],[6,3,7,3],[6,4,7,4],[6,5,7,5],[28,0,28,4]]}
["Landeshauptstadt Dresden - Jugendamt",{"$nulls":4},{"$f":"Deckblatt!P1","v":"Förderung von Trägern der freien Jugendhilfe 2020"}]
[{"$nulls":4},"AZ:",{"$f":"Deckblatt!K4","v":0}]
["Nachweis Sachausgabenbelege",{"$nulls":3},{"$f":"Deckblatt!N9","v":2020},"Blatt 1"]
["2.4 Honorare für Künstler/-innen und/oder Einzelprojektleitung"]
["(hier sind nicht die Honorare im Rahmen zeitlich begrenzter Maßnahmen, von Festen/Veranstaltungen oder für Verwaltungsaufgaben zu erfassen)"]
[]
["Beleg-/ Buchungs-Nr.","Tag der Zahlung","Kurzbeschreibung der Leistung / Name der Honorarkraft sofern nicht Zahlungsempfänger","Anzahl der honorierten Stunden","Zahlungs-\nempfänger","Ausgaben\n(in Euro)"]
[]
[]
[]
[]
[null,null," "]
{"$rows_empty":16}
["gesamt",{"$nulls":4},{"$f":"SUM(F9:F28)","v":0}]

{"sheet":"2.4 (2)","index":33,"n_rows":29,"n_cols":6,"rows_kept":29,"merged":[[2,0,2,3],[3,0,3,5],[4,0,5,5],[6,0,7,0],[6,1,7,1],[6,2,7,2],[6,3,7,3],[6,4,7,4],[6,5,7,5],[28,0,28,4]]}
["Landeshauptstadt Dresden - Jugendamt",{"$nulls":4},{"$f":"Deckblatt!P1","v":"Förderung von Trägern der freien Jugendhilfe 2020"}]
[{"$nulls":4},"AZ:",{"$f":"Deckblatt!K4","v":0}]
["Nachweis Sachausgabenbelege",{"$nulls":3},{"$f":"Deckblatt!N9","v":2020},"Blatt 2"]
["2.4 Honorare für Künstler/-innen und/oder Einzelprojektleitung"]
["(hier sind nicht die Honorare im Rahmen zeitlich begrenzter Maßnahmen, von Festen/Veranstaltungen oder für Verwaltungsaufgaben zu erfassen)"]
[]
["Beleg-/ Buchungs-Nr.","Tag der Zahlung","Kurzbeschreibung der Leistung / Name der Honorarkraft sofern nicht Zahlungsempfänger","Anzahl der honorierten Stunden","Zahlungs-\nempfänger","Ausgaben\n(in Euro)"]
{"$rows_empty":21}
["gesamt",{"$nulls":4},{"$f":"SUM(F9:F28)","v":0}]

{"sheet":"2.5 (1)","index":34,"n_rows":27,"n_cols":5,"rows_kept":27,"merged":[[3,0,3,4],[4,0,4,4],[5,0,6,0],[5,1,6,1],[5,2,6,2],[5,3,6,3],[5,4,6,4],[26,0,26,3]]}
["Landeshauptstadt Dresden - Jugendamt",{"$nulls":3},{"$f":"Deckblatt!P1","v":"Förderung von Trägern der freien Jugendhilfe 2020"}]
[{"$nulls":3},"AZ:",{"$f":"Deckblatt!K4","v":0}]
[null,null,"Nachweis Sachausgabenbelege",{"$f":"Deckblatt!N9","v":2020},"Blatt 1"]
["2.5 Lebensmittel"]
["(Lebensmittel sind nur zuwendungsfähig (max. 500 EUR/Jahr), wenn deren Einsatz notwendig ist, um den Zuwendungszweck zu erreichen; Verpflegungskosten zählen grundsätzlich nicht dazu; sie sind aus Teilnahmebeiträgen oder anderen Mitteln zu finanzieren)"]
["Beleg-/ Buchungs-Nr.","Tag der Zahlung","Zahlungsgrund\n(Einsatz für ...)","Zahlungsempfänger","Ausgaben \n(in Euro)"]
[null,null,"(z. B. für Sport- und Spielmaterial)"]
{"$rows_empty":19}
["gesamt",{"$nulls":3},{"$f":"SUM(E8:E26)","v":0}]

{"sheet":"2.5 (2)","index":35,"n_rows":27,"n_cols":5,"rows_kept":27,"merged":[[3,0,3,4],[3,6,7,9],[4,0,4,4],[5,0,6,0],[5,1,6,1],[5,2,6,2],[5,3,6,3],[5,4,6,4],[26,0,26,3]]}
["Landeshauptstadt Dresden - Jugendamt",{"$nulls":3},{"$f":"Deckblatt!P1","v":"Förderung von Trägern der freien Jugendhilfe 2020"}]
[{"$nulls":3},"AZ:",{"$f":"Deckblatt!K4","v":0}]
[null,null,"Nachweis Sachausgabenbelege",{"$f":"Deckblatt!N9","v":2020},"Blatt 2"]
["2.5 Lebensmittel"]
["(Lebensmittel sind nur zuwendungsfähig (max. 500 EUR/Jahr), wenn deren Einsatz notwendig ist, um den Zuwendungszweck zu erreichen; Verpflegungskosten zählen grundsätzlich nicht dazu; sie sind aus Teilnahmebeiträgen oder anderen Mitteln zu finanzieren)"]
["Beleg-/ Buchungs-Nr.","Tag der Zahlung","Zahlungsgrund\n(Einsatz für ...)","Zahlungsempfänger","Ausgaben \n(in Euro)"]
[null,null,"(z. B. für Sport- und Spielmaterial)"]
{"$rows_empty":19}
["gesamt",{"$nulls":3},{"$f":"SUM(E8:E26)","v":0}]

{"sheet":"2.5 (3)","index":36,"n_rows":27,"n_cols":5,"rows_kept":27,"merged":[[3,0,3,4],[3,6,7,9],[4,0,4,4],[5,0,6,0],[5,1,6,1],[5,2,6,2],[5,3,6,3],[5,4,6,4],[26,0,26,3]]}
["Landeshauptstadt Dresden - Jugendamt",{"$nulls":3},{"$f":"Deckblatt!P1","v":"Förderung von Trägern der freien Jugendhilfe 2020"}]
[{"$nulls":3},"AZ:",{"$f":"Deckblatt!K4","v":0}]
[null,null,"Nachweis Sachausgabenbelege",{"$f":"Deckblatt!N9","v":2020},"Blatt 3"]
["2.5 Lebensmittel"]
["(Lebensmittel sind nur zuwendungsfähig (max. 500 EUR/Jahr), wenn deren Einsatz notwendig ist, um den Zuwendungszweck zu erreichen; Verpflegungskosten zählen grundsätzlich nicht dazu; sie sind aus Teilnahmebeiträgen oder anderen Mitteln zu finanzieren)"]
["Beleg-/ Buchungs-Nr.","Tag der Zahlung","Zahlungsgrund\n(Einsatz für ...)","Zahlungsempfänger","Ausgaben \n(in Euro)"]
{"$rows_empty":20}
["gesamt",{"$nulls":3},{"$f":"SUM(E8:E26)","v":0}]

{"sheet":"2.5 (4)","index":37,"n_rows":27,"n_cols":5,"rows_kept":27,"merged":[[3,0,3,4],[3,6,7,9],[4,0,4,4],[5,0,6,0],[5,1,6,1],[5,2,6,2],[5,3,6,3],[5,4,6,4],[26,0,26,3]]}
["Landeshauptstadt Dresden - Jugendamt",{"$nulls":3},{"$f":"Deckblatt!P1","v":"Förderung von Trägern der freien Jugendhilfe 2020"}]
[{"$nulls":3},"AZ:",{"$f":"Deckblatt!K4","v":0}]
[null,null,"Nachweis Sachausgabenbelege",{"$f":"Deckblatt!N9","v":2020},"Blatt 4"]
["2.5 Lebensmittel"]
["(Lebensmittel sind nur zuwendungsfähig (max. 500 EUR/Jahr), wenn deren Einsatz notwendig ist, um den Zuwendungszweck zu erreichen; Verpflegungskosten zählen grundsätzlich nicht dazu; sie sind aus Teilnahmebeiträgen oder anderen Mitteln zu finanzieren)"]
["Beleg-/ Buchungs-Nr.","Tag der Zahlung","Zahlungsgrund\n(Einsatz für ...)","Zahlungsempfänger","Ausgaben \n(in Euro)"]
[null,null,"(z. B. für Sport- und Spielmaterial)"]
{"$rows_empty":19}
["gesamt",{"$nulls":3},{"$f":"SUM(E8:E26)","v":0}]

{"sheet":"2.5 (5)","index":38,"n_rows":27,"n_cols":5,"rows_kept":27,"merged":[[3,0,3,4],[3,6,7,9],[4,0,4,4],[5,0,6,0],[5,1,6,1],[5,2,6,2],[5,3,6,3],[5,4,6,4],[26,0,26,3]]}
["Landeshauptstadt Dresden - Jugendamt",{"$nulls":3},{"$f":"Deckblatt!P1","v":"Förderung von Trägern der freien Jugendhilfe 2020"}]
[{"$nulls":3},"AZ:",{"$f":"Deckblatt!K4","v":0}]
[null,null,"Nachweis Sachausgabenbelege",{"$f":"Deckblatt!N9","v":2020},"Blatt 5"]
["2.5 Lebensmittel"]
["(Lebensmittel sind nur zuwendungsfähig (max. 500 EUR/Jahr), wenn deren Einsatz notwendig ist, um den Zuwendungszweck zu erreichen; Verpflegungskosten zählen grundsätzlich nicht dazu; sie sind aus Teilnahmebeiträgen oder anderen Mitteln zu finanzieren)"]
["Beleg-/ Buchungs-Nr.","Tag der Zahlung","Zahlungsgrund\n(Einsatz für ...)","Zahlungsempfänger","Ausgaben \n(in Euro)"]
[null,null,"(z. B. für Sport- und Spielmaterial)"]
{"$rows_empty":19}
["gesamt",{"$nulls":3},{"$f":"SUM(E8:E26)","v":0}]

{"sheet":"2.6","index":39,"n_rows":42,"n_cols":5,"rows_kept":42,"merged":[[3,0,3,4],[4,0,4,4],[5,0,6,0],[5,1,6,1],[5,2,6,2],[5,3,6,3],[41,0,41,3]]}
["Landeshauptstadt Dresden - Jugendamt",{"$nulls":3},{"$f":"Deckblatt!P1","v":"Förderung von Trägern der freien Jugendhilfe 2020"}]
[{"$nulls":3},"AZ:",{"$f":"Deckblatt!K4","v":0}]
[null,null,"Nachweis Sachausgabenbelege",{"$f":"Deckblatt!N9","v":2020}]
["2.6 sonstige Ausgaben für die sozialpädagogische Arbeit"]
["(müssen im Fördermittelantrag benannt worden sein)"]
["Beleg-/ Buchungs-Nr.","Tag der Zahlung","Zahlungsgrund","Zahlungsempfänger","Ausgaben"]
[{"$nulls":4},"(in Euro)"]
{"$rows_empty":34}
["gesamt",{"$nulls":3},{"$f":"SUM(E8:E41)","v":0}]

{"sheet":"3.1 (1)","index":40,"n_rows":36,"n_cols":5,"rows_kept":36,"merged":[[3,0,3,4],[4,6,5,8],[5,0,6,0],[5,1,6,1],[5,2,6,2],[5,3,6,3],[5,4,6,4],[35,0,35,3]]}
["Landeshauptstadt Dresden - Jugendamt",{"$nulls":3},{"$f":"Deckblatt!P1","v":"Förderung von Trägern der freien Jugendhilfe 2020"}]
[{"$nulls":3},"AZ:",{"$f":"Deckblatt!K4","v":0}]
[null,null,"Nachweis Sachausgabenbelege",{"$f":"Deckblatt!N9","v":2020},"Blatt 1"]
["3.1 Telekommunikation, Internetnutzung"]
[]
["Beleg-/ Buchungs-Nr.","Tag der Zahlung","Zahlungsgrund","Zahlungsempfänger","Ausgaben \n(in Euro)"]
{"$rows_empty":29}
["gesamt",{"$nulls":3},{"$f":"SUM(E8:E35)","v":0}]

{"sheet":"3.1 (2)","index":41,"n_rows":36,"n_cols":5,"rows_kept":36,"merged":[[3,0,3,4],[4,6,5,8],[5,0,6,0],[5,1,6,1],[5,2,6,2],[5,3,6,3],[5,4,6,4],[35,0,35,3]]}
["Landeshauptstadt Dresden - Jugendamt",{"$nulls":3},{"$f":"Deckblatt!P1","v":"Förderung von Trägern der freien Jugendhilfe 2020"}]
[{"$nulls":3},"AZ:",{"$f":"Deckblatt!K4","v":0}]
[null,null,"Nachweis Sachausgabenbelege",{"$f":"Deckblatt!N9","v":2020},"Blatt 2"]
["3.1 Telekommunikation, Internetnutzung"]
[]
["Beleg-/ Buchungs-Nr.","Tag der Zahlung","Zahlungsgrund","Zahlungsempfänger","Ausgaben \n(in Euro)"]
{"$rows_empty":29}
["gesamt",{"$nulls":3},{"$f":"SUM(E8:E35)","v":0}]

{"sheet":"3.2 (1)","index":42,"n_rows":43,"n_cols":5,"rows_kept":43,"merged":[[42,0,42,3]]}
["Landeshauptstadt Dresden - Jugendamt",{"$nulls":3},{"$f":"Deckblatt!P1","v":"Förderung von Trägern der freien Jugendhilfe 2020"}]
[{"$nulls":3},"AZ:",{"$f":"Deckblatt!K4","v":0}]
["Nachweis Sachausgabenbelege",{"$nulls":3},"Blatt 1"]
["3.2  Geringwertige Wirtschaftsgüter/bewegliche Sachen ",{"$nulls":3},{"$f":"Deckblatt!N9","v":2020}]
[" des Anlagevermögens (GwG, BS)"]
["Beleg-/ Buchungs-Nr.","Tag der Zahlung","Zahlungsgrund \n(aussagekräftige Beschreibung)","Zahlungsempfänger","Ausgaben\n(in Euro)"]
{"$rows_empty":36}
["gesamt",{"$nulls":3},{"$f":"SUM(E7:E42)","v":0}]

{"sheet":"3.2 (2)","index":43,"n_rows":43,"n_cols":5,"rows_kept":43,"merged":[[42,0,42,3]]}
["Landeshauptstadt Dresden - Jugendamt",{"$nulls":3},{"$f":"Deckblatt!P1","v":"Förderung von Trägern der freien Jugendhilfe 2020"}]
[{"$nulls":3},"AZ:",{"$f":"Deckblatt!K4","v":0}]
["Nachweis Sachausgabenbelege",{"$nulls":3},"Blatt 2"]
["3.2  Geringwertige Wirtschaftsgüter/bewegliche Sachen ",{"$nulls":3},{"$f":"Deckblatt!N9","v":2020}]
[" des Anlagevermögens (GwG, BS)"]
["Beleg-/ Buchungs-Nr.","Tag der Zahlung","Zahlungsgrund \n(aussagekräftige Beschreibung)","Zahlungsempfänger","Ausgaben\n(in Euro)"]
{"$rows_empty":36}
["gesamt",{"$nulls":3},{"$f":"SUM(E7:E42)","v":0}]

{"sheet":"3.3 (1)","index":44,"n_rows":30,"n_cols":8,"rows_kept":30,"merged":[[2,0,2,3],[3,0,3,5],[5,0,5,2],[5,7,10,11],[7,0,8,0],[7,1,8,1],[7,3,8,3],[7,4,7,5],[29,0,29,3]]}
["Landeshauptstadt Dresden - Jugendamt",{"$nulls":4},{"$f":"Deckblatt!P1","v":"Förderung von Trägern der freien Jugendhilfe 2020"}]
[{"$nulls":4},"AZ:",{"$f":"Deckblatt!K4","v":0}]
["Nachweis Sachausgabenbelege",{"$nulls":3},{"$f":"Deckblatt!N9","v":2020},"Blatt 1"]
["3.3 Kfz-Kosten Dienstfahrzeuge (im Eigentum des Zuwendungsempfängers)"]
[]
["  Nutzung des Dienst-Kfz für dieses Angebot in %*",{"$nulls":3},"Auto-Kennzeichen:",null,null,"*%-Angabe ist zwingend erforderlich, um den Ausgabenanteil bei der Abrechnung der Fördermittel geltend machen zu können -> zuwendungsfähig ist der Anteil an den Ausgaben für das Kfz entsprechend dem Anteil der gefahrenen km für das Angebot (gemäß Fahrtenbuch) - %-ualer Anteil Fahrtenkilometer für das Angebot = förderfähiger %-ualer Anteil an den Kfz-Kosten"]
[]
["Beleg-/ Buchungs-Nr.","Tag der Zahlung","Zahlungsgrund","Zahlungsempfänger","Ausgaben (in EUR)"]
[null,null,"(Kraftstoffverbrauch/Unterhaltung/Versicherungen/Leasingkosten)",null,"gesamt","anteil entsprechend der Nutzung für das Angebot"]
[{"$nulls":5},{"$f":"$D$6*E10/100","v":0}]
[{"$nulls":5},0]
[{"$nulls":5},0]
[{"$nulls":5},0]
[{"$nulls":5},0]
[{"$nulls":5},0]
[{"$nulls":5},0]
[{"$nulls":5},0]
[{"$nulls":5},0]
[{"$nulls":5},0]
[{"$nulls":5},0]
[{"$nulls":5},0]
[{"$nulls":5},0]
[{"$nulls":5},0]
[{"$nulls":5},0]
[{"$nulls":5},0]
[{"$nulls":5},0]
[{"$nulls":5},0]
[{"$nulls":5},0]
[{"$nulls":5},0]
["gesamt",{"$nulls":3},{"$f":"SUM(E10:E29)","v":0},{"$f":"SUM(F10:F29)","v":0}]

{"sheet":"3.3 (2)","index":45,"n_rows":30,"n_cols":8,"rows_kept":30,"merged":[[2,0,2,3],[3,0,3,5],[5,0,5,2],[5,7,10,11],[7,0,8,0],[7,1,8,1],[7,3,8,3],[7,4,7,5],[29,0,29,3]]}
["Landeshauptstadt Dresden - Jugendamt",{"$nulls":4},{"$f":"Deckblatt!P1","v":"Förderung von Trägern der freien Jugendhilfe 2020"}]
[{"$nulls":4},"AZ:",{"$f":"Deckblatt!K4","v":0}]
["Nachweis Sachausgabenbelege",{"$nulls":3},{"$f":"Deckblatt!N9","v":2020},"Blatt 2"]
["3.3 Kfz-Kosten Dienstfahrzeuge (im Eigentum des Zuwendungsempfängers)"]
[]
["  Nutzung des Dienst-Kfz für dieses Angebot in %*",{"$nulls":3},"Auto-Kennzeichen:",null,null,"*%-Angabe ist zwingend erforderlich, um den Ausgabenanteil bei der Abrechnung der Fördermittel geltend machen zu können -> zuwendungsfähig ist der Anteil an den Ausgaben für das Kfz entsprechend dem Anteil der gefahrenen km für das Angebot (gemäß Fahrtenbuch) - %-ualer Anteil Fahrtenkilometer für das Angebot = förderfähiger %-ualer Anteil an den Kfz-Kosten"]
[]
["Beleg-/ Buchungs-Nr.","Tag der Zahlung","Zahlungsgrund","Zahlungsempfänger","Ausgaben (in EUR)"]
[null,null,"(Kraftstoffverbrauch/Unterhaltung/Versicherungen/Leasingkosten)",null,"gesamt","anteil entsprechend der Nutzung für das Angebot"]
[{"$nulls":5},{"$f":"$D$6*E10/100","v":0}]
[{"$nulls":5},0]
[{"$nulls":5},0]
[{"$nulls":5},0]
[{"$nulls":5},0]
[{"$nulls":5},0]
[{"$nulls":5},0]
[{"$nulls":5},0]
[{"$nulls":5},0]
[{"$nulls":5},0]
[{"$nulls":5},0]
[{"$nulls":5},0]
[{"$nulls":5},0]
[{"$nulls":5},0]
[{"$nulls":5},0]
[{"$nulls":5},0]
[{"$nulls":5},0]
[{"$nulls":5},0]
[{"$nulls":5},0]
[{"$nulls":5},0]
["gesamt",{"$nulls":3},{"$f":"SUM(E10:E29)","v":0},{"$f":"SUM(F10:F29)","v":0}]

{"sheet":"3.3 (3)","index":46,"n_rows":30,"n_cols":8,"rows_kept":30,"merged":[[2,0,2,3],[3,0,3,5],[5,0,5,2],[5,7,10,11],[7,0,8,0],[7,1,8,1],[7,3,8,3],[7,4,7,5],[29,0,29,3]]}
["Landeshauptstadt Dresden - Jugendamt",{"$nulls":4},{"$f":"Deckblatt!P1","v":"Förderung von Trägern der freien Jugendhilfe 2020"}]
[{"$nulls":4},"AZ:",{"$f":"Deckblatt!K4","v":0}]
["Nachweis Sachausgabenbelege",{"$nulls":3},{"$f":"Deckblatt!N9","v":2020},"Blatt 3"]
["3.3 Kfz-Kosten Dienstfahrzeuge (im Eigentum des Zuwendungsempfängers)"]
[]
["  Nutzung des Dienst-Kfz für dieses Angebot in %*",{"$nulls":3},"Auto-Kennzeichen:",null,null,"*%-Angabe ist zwingend erforderlich, um den Ausgabenanteil bei der Abrechnung der Fördermittel geltend machen zu können -> zuwendungsfähig ist der Anteil an den Ausgaben für das Kfz entsprechend dem Anteil der gefahrenen km für das Angebot (gemäß Fahrtenbuch) - %-ualer Anteil Fahrtenkilometer für das Angebot = förderfähiger %-ualer Anteil an den Kfz-Kosten"]
[]
["Beleg-/ Buchungs-Nr.","Tag der Zahlung","Zahlungsgrund","Zahlungsempfänger","Ausgaben (in EUR)"]
[null,null,"(Kraftstoffverbrauch/Unterhaltung/Versicherungen/Leasingkosten)",null,"gesamt","anteil entsprechend der Nutzung für das Angebot"]
[{"$nulls":5},{"$f":"$D$6*E10/100","v":0}]
[{"$nulls":5},0]
[{"$nulls":5},0]
[{"$nulls":5},0]
[{"$nulls":5},0]
[{"$nulls":5},0]
[{"$nulls":5},0]
[{"$nulls":5},0]
[{"$nulls":5},0]
[{"$nulls":5},0]
[{"$nulls":5},0]
[{"$nulls":5},0]
[{"$nulls":5},0]
[{"$nulls":5},0]
[{"$nulls":5},0]
[{"$nulls":5},0]
[{"$nulls":5},0]
[{"$nulls":5},0]
[{"$nulls":5},0]
[{"$nulls":5},0]
["gesamt",{"$nulls":3},{"$f":"SUM(E10:E29)","v":0},{"$f":"SUM(F10:F29)","v":0}]

{"sheet":"3.4 (1)","index":47,"n_rows":28,"n_cols":9,"rows_kept":28,"merged":[[4,0,4,6],[6,0,7,0],[6,1,7,1],[6,3,7,3],[6,4,6,6],[7,8,7,10],[8,8,8,10],[9,8,9,10],[10,8,10,10],[27,0,27,3]]}
["Landeshauptstadt Dresden - Jugendamt",{"$nulls":5},{"$f":"Deckblatt!P1","v":"Förderung von Trägern der freien Jugendhilfe 2020"}]
[{"$nulls":5},"AZ:",{"$f":"Deckblatt!K4","v":0}]
[]
[{"$nulls":3},"Nachweis Sachausgabenbelege",null,{"$f":"Deckblatt!N9","v":2020},"Blatt 1"]
["3.4 Dienstgänge: Fahrtkostenerstattung Nutzung Privat-Kfz"]
[]
["Beleg-/ Buchungs-Nr.","Tag der Zahlung","Zahlungsgrund","Zahlungsempfänger","Ausgaben (in EUR)"]
[null,null,"(Grund der Fahrt)",null,"km","EUR/km (0,17/0,30/0,35)","Fahrtkosten-           erstattung",null,"Sächsisches Reisekostengesetz (Zuwendungsbestimmung)"]
[{"$nulls":6},{"$f":"E9*F9","v":0},null,"0,17 EUR/km"]
[{"$nulls":6},{"$f":"E10*F10","v":0},null,"0,30 EUR/km bei dringenden dienstlichen Gründen; das Vorliegen dieser Voraussetzungen muss vor Antritt der Reise vom Vorgesetzten festgestellt werden (genehmigter Dienstreiseantrag)"]
[{"$nulls":6},0,null,"0,35 EUR/km bei typischerweise im Außendienst ausgeübter Tätigkeit (Arbeitsinhalte werden regelmäßig außerhalb der Dienststelle wahrgenommen, z. B. Straßensozialarbeit, mobile Jugendarbeit)"]
[{"$nulls":6},0]
[{"$nulls":6},0]
[{"$nulls":6},0]
[{"$nulls":6},0]
[{"$nulls":6},0]
[{"$nulls":6},0]
[{"$nulls":6},0]
[{"$nulls":6},0]
[{"$nulls":6},0]
[{"$nulls":6},0]
[{"$nulls":6},0]
[{"$nulls":6},0]
[{"$nulls":6},0]
[{"$nulls":6},0]
[{"$nulls":6},0]
[{"$nulls":6},0]
["gesamt",{"$nulls":3},{"$f":"SUM(E9:E27)","v":0},null,{"$f":"SUM(G9:G27)","v":0}]

{"sheet":"3.4 (2)","index":48,"n_rows":28,"n_cols":7,"rows_kept":28,"merged":[[4,0,4,6],[6,0,7,0],[6,1,7,1],[6,3,7,3],[6,4,6,6],[27,0,27,3]]}
["Landeshauptstadt Dresden - Jugendamt",{"$nulls":5},{"$f":"Deckblatt!P1","v":"Förderung von Trägern der freien Jugendhilfe 2020"}]
[{"$nulls":5},"AZ:",{"$f":"Deckblatt!K4","v":0}]
[]
[{"$nulls":3},"Nachweis Sachausgabenbelege",null,{"$f":"Deckblatt!N9","v":2020},"Blatt 2"]
["3.4 Dienstgänge: Fahrtkostenerstattung Nutzung Privat-Kfz"]
[]
["Beleg-/ Buchungs-Nr.","Tag der Zahlung","Zahlungsgrund","Zahlungsempfänger","Ausgaben (in EUR)"]
[null,null,"(Grund der Fahrt)",null,"km","EUR/km (0,17/0,30/0,35)","Fahrtkosten-           erstattung"]
[{"$nulls":6},{"$f":"E9*F9","v":0}]
[{"$nulls":6},{"$f":"E10*F10","v":0}]
[{"$nulls":6},0]
[{"$nulls":6},0]
[{"$nulls":6},0]
[{"$nulls":6},0]
[{"$nulls":6},0]
[{"$nulls":6},0]
[{"$nulls":6},0]
[{"$nulls":6},0]
[{"$nulls":6},0]
[{"$nulls":6},0]
[{"$nulls":6},0]
[{"$nulls":6},0]
[{"$nulls":6},0]
[{"$nulls":6},0]
[{"$nulls":6},0]
[{"$nulls":6},0]
[{"$nulls":6},0]
["gesamt",{"$nulls":3},{"$f":"SUM(E9:E27)","v":0},null,{"$f":"SUM(G9:G27)","v":0}]

{"sheet":"3.4 Stadtfahrten","index":49,"n_rows":43,"n_cols":6,"rows_kept":43,"merged":[[3,0,3,4],[4,0,4,4],[42,0,42,3]]}
["Landeshauptstadt Dresden - Jugendamt",{"$nulls":3},{"$f":"Deckblatt!P1","v":"Förderung von Trägern der freien Jugendhilfe 2020"}]
[{"$nulls":3},"AZ:",{"$f":"Deckblatt!K4","v":0}]
[]
["Nachweis Sachausgabenbelege",{"$nulls":4},{"$f":"Deckblatt!N8","v":0}]
["3.4 Dienstgänge/Stadtfahrten (z. B. Fahrkarten)"]
[]
["Beleg-/ Buchungs-Nr.","Tag der Zahlung","Zahlungsgrund \n(aussagekräftige Beschreibung)","Zahlungsempfänger","Ausgaben\n(in Euro)"]
{"$rows_empty":35}
["gesamt",{"$nulls":3},{"$f":"SUM(E8:E42)","v":0}]

{"sheet":"3.5 (1)","index":50,"n_rows":22,"n_cols":5,"rows_kept":22,"merged":[[4,0,4,4],[4,6,5,8],[5,0,6,0],[5,1,6,1],[5,2,6,2],[5,3,6,3],[5,4,6,4],[21,0,21,3]]}
["Landeshauptstadt Dresden - Jugendamt",{"$nulls":3},{"$f":"Deckblatt!P1","v":"Förderung von Trägern der freien Jugendhilfe 2020"}]
[{"$nulls":3},"AZ:",{"$f":"Deckblatt!K4","v":0}]
[null,"Nachweis Sachausgabenbelege",null,{"$f":"Deckblatt!N9","v":2020},"Blatt 1"]
[null,"3.5 Fort- und Weiterbildungskosten"]
["(inkl. Reise- und Übernachtungskosten) einschl. Fachtagungen/Supervision für haupt- und nebenberufliche Mitarbeiter/-innen"]
["Beleg-/ Buchungs-Nr.","Tag der Zahlung","Zahlungsgrund (Kurzbezeichnung der Bildung, Art der Ausgabe)","Zahlungsempfänger","Ausgaben\n(in EUR)"]
[null,null,"(z. B. für Sport- und Spielmaterial)"]
{"$rows_empty":14}
["gesamt",{"$nulls":3},{"$f":"SUM(E8:E21)","v":0}]

{"sheet":"3.5 (2)","index":51,"n_rows":22,"n_cols":5,"rows_kept":22,"merged":[[4,0,4,4],[4,6,5,8],[5,0,6,0],[5,1,6,1],[5,2,6,2],[5,3,6,3],[5,4,6,4],[21,0,21,3]]}
["Landeshauptstadt Dresden - Jugendamt",{"$nulls":3},{"$f":"Deckblatt!P1","v":"Förderung von Trägern der freien Jugendhilfe 2020"}]
[{"$nulls":3},"AZ:",{"$f":"Deckblatt!K4","v":0}]
[null,"Nachweis Sachausgabenbelege",null,{"$f":"Deckblatt!N9","v":2020},"Blatt 2"]
[null,"3.5 Fort- und Weiterbildungskosten"]
["(inkl. Reise- und Übernachtungskosten) einschl. Fachtagungen/Supervision für haupt- und nebenberufliche Mitarbeiter/-innen"]
["Beleg-/ Buchungs-Nr.","Tag der Zahlung","Zahlungsgrund (Kurzbezeichnung der Bildung, Art der Ausgabe)","Zahlungsempfänger","Ausgaben\n(in EUR)"]
[null,null,"(z. B. für Sport- und Spielmaterial)"]
{"$rows_empty":14}
["gesamt",{"$nulls":3},{"$f":"SUM(E8:E21)","v":0}]

{"sheet":"3.5 (3)","index":52,"n_rows":22,"n_cols":5,"rows_kept":22,"merged":[[4,0,4,4],[4,6,5,8],[5,0,6,0],[5,1,6,1],[5,2,6,2],[5,3,6,3],[5,4,6,4],[21,0,21,3]]}
["Landeshauptstadt Dresden - Jugendamt",{"$nulls":3},{"$f":"Deckblatt!P1","v":"Förderung von Trägern der freien Jugendhilfe 2020"}]
[{"$nulls":3},"AZ:",{"$f":"Deckblatt!K4","v":0}]
[null,"Nachweis Sachausgabenbelege",null,{"$f":"Deckblatt!N9","v":2020},"Blatt 3"]
[null,"3.5 Fort- und Weiterbildungskosten"]
["(inkl. Reise- und Übernachtungskosten) einschl. Fachtagungen/Supervision für haupt- und nebenberufliche Mitarbeiter/-innen"]
["Beleg-/ Buchungs-Nr.","Tag der Zahlung","Zahlungsgrund (Kurzbezeichnung der Bildung, Art der Ausgabe)","Zahlungsempfänger","Ausgaben\n(in EUR)"]
[null,null,"(z. B. für Sport- und Spielmaterial)"]
{"$rows_empty":14}
["gesamt",{"$nulls":3},{"$f":"SUM(E8:E21)","v":0}]

{"sheet":"3.5 (4)","index":53,"n_rows":22,"n_cols":5,"rows_kept":22,"merged":[[4,0,4,4],[5,0,6,0],[5,1,6,1],[5,2,6,2],[5,3,6,3],[5,4,6,4],[5,6,5,8],[21,0,21,3]]}
["Landeshauptstadt Dresden - Jugendamt",{"$nulls":3},{"$f":"Deckblatt!P1","v":"Förderung von Trägern der freien Jugendhilfe 2020"}]
[{"$nulls":3},"AZ:",{"$f":"Deckblatt!K4","v":0}]
[null,"Nachweis Sachausgabenbelege",null,{"$f":"Deckblatt!N9","v":2020},"Blatt 4"]
[null,"3.5 Fort- und Weiterbildungskosten"]
["(inkl. Reise- und Übernachtungskosten) einschl. Fachtagungen/Supervision für haupt- und nebenberufliche Mitarbeiter/-innen"]
["Beleg-/ Buchungs-Nr.","Tag der Zahlung","Zahlungsgrund (Kurzbezeichnung der Bildung, Art der Ausgabe)","Zahlungsempfänger","Ausgaben\n(in EUR)"]
[null,null,"(z. B. für Sport- und Spielmaterial)"]
{"$rows_empty":14}
["gesamt",{"$nulls":3},{"$f":"SUM(E8:E21)","v":0}]

{"sheet":"3.6 (1)","index":54,"n_rows":25,"n_cols":6,"rows_kept":25,"merged":[[2,0,2,3],[3,0,3,5],[4,0,5,0],[4,1,5,1],[4,2,5,2],[4,3,5,3],[4,4,5,4],[4,5,5,5],[24,0,24,4]]}
["Landeshauptstadt Dresden - Jugendamt",{"$nulls":4},{"$f":"Deckblatt!P1","v":"Förderung von Trägern der freien Jugendhilfe 2020"}]
[{"$nulls":4},"AZ:",{"$f":"Deckblatt!K4","v":0}]
["Nachweis Sachausgabenbelege",{"$nulls":3},{"$f":"Deckblatt!N9","v":2020},"Blatt 1"]
["3.6 Ausgaben für Freiwilligendienste,\nAusbildungsvergütung für angehende Fachkräfte (BA-Studenten)"]
["Beleg-/ Buchungs-Nr.","Tag der Zahlung","Zahlungsgrund\n(Art des Dienste, Einsatzort)","Name des Dienstleistenden/\nZahlungs-\nempfänger","Einsatz-\nzeitraum","Ausgaben \nin EUR"]
{"$rows_empty":19}
["gesamt",{"$nulls":4},{"$f":"SUM(F7:F24)","v":0}]

{"sheet":"3.6 (2)","index":55,"n_rows":25,"n_cols":6,"rows_kept":25,"merged":[[2,0,2,3],[3,0,3,5],[4,0,5,0],[4,1,5,1],[4,2,5,2],[4,3,5,3],[4,4,5,4],[4,5,5,5],[4,6,4,8],[24,0,24,4]]}
["Landeshauptstadt Dresden - Jugendamt",{"$nulls":4},{"$f":"Deckblatt!P1","v":"Förderung von Trägern der freien Jugendhilfe 2020"}]
[{"$nulls":4},"AZ:",{"$f":"Deckblatt!K4","v":0}]
["Nachweis Sachausgabenbelege",{"$nulls":3},{"$f":"Deckblatt!N9","v":2020},"Blatt 2"]
["3.6 Ausgaben für Freiwilligendienste,\nAusbildungsvergütung für angehende Fachkräfte (BA-Studenten)"]
["Beleg-/ Buchungs-Nr.","Tag der Zahlung","Zahlungsgrund\n(Art des Dienste, Einsatzort)","Name des Dienstleistenden/\nZahlungs-\nempfänger","Einsatz-\nzeitraum","Ausgaben \nin EUR"]
{"$rows_empty":19}
["gesamt",{"$nulls":4},{"$f":"SUM(F7:F24)","v":0}]

{"sheet":"3.7 (1)","index":56,"n_rows":21,"n_cols":6,"rows_kept":21,"merged":[[2,0,2,3],[3,0,3,5],[4,0,5,0],[4,1,5,1],[4,2,5,2],[4,3,5,3],[4,4,5,4],[4,5,5,5],[4,7,4,9],[20,0,20,4]]}
["Landeshauptstadt Dresden - Jugendamt",{"$nulls":4},{"$f":"Deckblatt!P1","v":"Förderung von Trägern der freien Jugendhilfe 2020"}]
[{"$nulls":4},"AZ:",{"$f":"Deckblatt!K4","v":0}]
["Nachweis Sachausgabenbelege",{"$nulls":3},{"$f":"Deckblatt!N9","v":2020},"Blatt 1"]
["3.7 Aufwandsentschädigung an Ehrenamtliche/Praktikanten/-innen"]
["Beleg-/ Buchungs-Nr.","Tag der Zahlung","Zahlungsgrund\n(Name, kurze Einsatzbeschreibung, Einsatzort )","Name\n(Zahlungsempfänger)","Einsatz-\nzeitraum","Ausgaben \nin EUR"]
{"$rows_empty":15}
["gesamt",{"$nulls":4},{"$f":"SUM(F7:F20)","v":0}]

{"sheet":"3.7 (2)","index":57,"n_rows":21,"n_cols":6,"rows_kept":21,"merged":[[2,0,2,3],[3,0,3,5],[4,0,5,0],[4,1,5,1],[4,2,5,2],[4,3,5,3],[4,4,5,4],[4,5,5,5],[4,6,4,8],[20,0,20,4]]}
["Landeshauptstadt Dresden - Jugendamt",{"$nulls":4},{"$f":"Deckblatt!P1","v":"Förderung von Trägern der freien Jugendhilfe 2020"}]
[{"$nulls":4},"AZ:",{"$f":"Deckblatt!K4","v":0}]
["Nachweis Sachausgabenbelege",{"$nulls":3},{"$f":"Deckblatt!N9","v":2020},"Blatt 2"]
["3.7 Aufwandsentschädigung an Ehrenamtliche/Praktikanten/-innen"]
["Beleg-/ Buchungs-Nr.","Tag der Zahlung","Zahlungsgrund\n(Name, kurze Einsatzbeschreibung, Einsatzort )","Name\n(Zahlungsempfänger)","Einsatz-\nzeitraum","Ausgaben \nin EUR"]
{"$rows_empty":15}
["gesamt",{"$nulls":4},{"$f":"SUM(F7:F20)","v":0}]

{"sheet":"3.7 (3)","index":58,"n_rows":21,"n_cols":6,"rows_kept":21,"merged":[[2,0,2,3],[3,0,3,5],[4,0,5,0],[4,1,5,1],[4,2,5,2],[4,3,5,3],[4,4,5,4],[4,5,5,5],[4,6,4,8],[20,0,20,4]]}
["Landeshauptstadt Dresden - Jugendamt",{"$nulls":4},{"$f":"Deckblatt!P1","v":"Förderung von Trägern der freien Jugendhilfe 2020"}]
[{"$nulls":4},"AZ:",{"$f":"Deckblatt!K4","v":0}]
["Nachweis Sachausgabenbelege",{"$nulls":3},{"$f":"Deckblatt!N9","v":2020},"Blatt 3"]
["3.7 Aufwandsentschädigung an Ehrenamtliche/Praktikanten/-innen"]
["Beleg-/ Buchungs-Nr.","Tag der Zahlung","Zahlungsgrund\n(Name, kurze Einsatzbeschreibung, Einsatzort )","Name\n(Zahlungsempfänger)","Einsatz-\nzeitraum","Ausgaben \nin EUR"]
{"$rows_empty":15}
["gesamt",{"$nulls":4},{"$f":"SUM(F7:F20)","v":0}]

{"sheet":"3.7 (4)","index":59,"n_rows":21,"n_cols":6,"rows_kept":21,"merged":[[2,0,2,3],[3,0,3,5],[4,0,5,0],[4,1,5,1],[4,2,5,2],[4,3,5,3],[4,4,5,4],[4,5,5,5],[4,6,4,8],[20,0,20,4]]}
["Landeshauptstadt Dresden - Jugendamt",{"$nulls":4},{"$f":"Deckblatt!P1","v":"Förderung von Trägern der freien Jugendhilfe 2020"}]
[{"$nulls":4},"AZ:",{"$f":"Deckblatt!K4","v":0}]
["Nachweis Sachausgabenbelege",{"$nulls":3},{"$f":"Deckblatt!N9","v":2020},"Blatt 4"]
["3.7 Aufwandsentschädigung an Ehrenamtliche/Praktikanten/-innen"]
["Beleg-/ Buchungs-Nr.","Tag der Zahlung","Zahlungsgrund\n(Name, kurze Einsatzbeschreibung, Einsatzort )","Name\n(Zahlungsempfänger)","Einsatz-\nzeitraum","Ausgaben \nin EUR"]
{"$rows_empty":15}
["gesamt",{"$nulls":4},{"$f":"SUM(F7:F20)","v":0}]

{"sheet":"3.8","index":60,"n_rows":32,"n_cols":5,"rows_kept":32,"merged":[[3,0,3,4],[4,0,4,4],[5,0,6,0],[5,1,6,1],[5,2,6,2],[5,3,6,3],[31,0,31,3]]}
["Landeshauptstadt Dresden - Jugendamt",{"$nulls":3},{"$f":"Deckblatt!P1","v":"Förderung von Trägern der freien Jugendhilfe 2020"}]
[{"$nulls":3},"AZ:",{"$f":"Deckblatt!K4","v":0}]
[null,null,"Nachweis Sachausgabenbelege",{"$f":"Deckblatt!N9","v":2020},"Blatt 1"]
["3.8 sonstige Ausgaben der Rubrik \"weitere Sachausgaben\""]
["(müssen im Fördermittelantrag benannt worden sein)"]
["Beleg-/ Buchungs-Nr.","Tag der Zahlung","Zahlungsgrund","Zahlungsempfänger","Ausgaben"]
[{"$nulls":4},"(in Euro)"]
{"$rows_empty":24}
["gesamt",{"$nulls":3},{"$f":"SUM(E8:E31)","v":0}]

{"sheet":"4.1 (1)","index":61,"n_rows":31,"n_cols":5,"rows_kept":31,"merged":[[2,2,2,3],[4,0,4,4],[6,0,7,0],[6,1,7,1],[6,2,7,2],[6,3,7,3],[6,4,7,4],[6,6,6,8],[30,0,30,3]]}
["Landeshauptstadt Dresden - Jugendamt",{"$nulls":3},{"$f":"Deckblatt!P1","v":"Förderung von Trägern der freien Jugendhilfe 2020"}]
[{"$nulls":3},"AZ:",{"$f":"Deckblatt!K4","v":0}]
[null,null,"Nachweis Sachausgabenbelege",null,{"$f":"Deckblatt!N9","v":2020}]
[null,null,"4.1 Verwaltungsaufwendungen im Angebot"]
["(z. B. Büromaterial, Porto, Ausgaben für öffentliche Bekanntmachungen, Anschaffung/Leasing/Wartung Bürotechnik, Ausgaben für Buchhaltung/Gehaltsberechnung)"]
[]
["Beleg-/ Buchungs-Nr.","Tag der Zahlung","Zahlungsgrund","Zahlungsempfänger","Ausgaben\n(in Euro)"]
{"$rows_empty":23}
["gesamt",{"$nulls":3},{"$f":"SUM(E9:E30)","v":0}]

{"sheet":"4.1 (2)","index":62,"n_rows":31,"n_cols":5,"rows_kept":31,"merged":[[2,2,2,3],[4,0,4,4],[6,0,7,0],[6,1,7,1],[6,2,7,2],[6,3,7,3],[6,4,7,4],[6,6,6,8],[30,0,30,3]]}
["Landeshauptstadt Dresden - Jugendamt",{"$nulls":3},{"$f":"Deckblatt!P1","v":"Förderung von Trägern der freien Jugendhilfe 2020"}]
[{"$nulls":3},"AZ:",{"$f":"Deckblatt!K4","v":0}]
[null,null,"Nachweis Sachausgabenbelege",null,{"$f":"Deckblatt!N9","v":2020}]
[null,null,"4.1 Verwaltungsaufwendungen im Angebot"]
["(z. B. Büromaterial, Porto, Ausgaben für öffentliche Bekanntmachungen, Anschaffung/Leasing/Wartung Bürotechnik, Ausgaben für Buchhaltung/Gehaltsberechnung)"]
[]
["Beleg-/ Buchungs-Nr.","Tag der Zahlung","Zahlungsgrund","Zahlungsempfänger","Ausgaben\n(in Euro)"]
{"$rows_empty":23}
["gesamt",{"$nulls":3},{"$f":"SUM(E9:E30)","v":0}]

{"sheet":"4.1 (3)","index":63,"n_rows":31,"n_cols":5,"rows_kept":31,"merged":[[2,2,2,3],[4,0,4,4],[6,0,7,0],[6,1,7,1],[6,2,7,2],[6,3,7,3],[6,4,7,4],[6,6,6,8],[30,0,30,3]]}
["Landeshauptstadt Dresden - Jugendamt",{"$nulls":3},{"$f":"Deckblatt!P1","v":"Förderung von Trägern der freien Jugendhilfe 2020"}]
[{"$nulls":3},"AZ:",{"$f":"Deckblatt!K4","v":0}]
[null,null,"Nachweis Sachausgabenbelege",null,{"$f":"Deckblatt!N9","v":2020}]
[null,null,"4.1 Verwaltungsaufwendungen im Angebot"]
["(z. B. Büromaterial, Porto, Ausgaben für öffentliche Bekanntmachungen, Anschaffung/Leasing/Wartung Bürotechnik, Ausgaben für Buchhaltung/Gehaltsberechnung)"]
[]
["Beleg-/ Buchungs-Nr.","Tag der Zahlung","Zahlungsgrund","Zahlungsempfänger","Ausgaben\n(in Euro)"]
{"$rows_empty":23}
["gesamt",{"$nulls":3},{"$f":"SUM(E9:E30)","v":0}]

{"sheet":"4.1 (4)","index":64,"n_rows":31,"n_cols":5,"rows_kept":31,"merged":[[2,2,2,3],[4,0,4,4],[6,0,7,0],[6,1,7,1],[6,2,7,2],[6,3,7,3],[6,4,7,4],[6,6,6,8],[30,0,30,3]]}
["Landeshauptstadt Dresden - Jugendamt",{"$nulls":3},{"$f":"Deckblatt!P1","v":"Förderung von Trägern der freien Jugendhilfe 2020"}]
[{"$nulls":3},"AZ:",{"$f":"Deckblatt!K4","v":0}]
[null,null,"Nachweis Sachausgabenbelege",null,{"$f":"Deckblatt!N9","v":2020}]
[null,null,"4.1 Verwaltungsaufwendungen im Angebot"]
["(z. B. Büromaterial, Porto, Ausgaben für öffentliche Bekanntmachungen, Anschaffung/Leasing/Wartung Bürotechnik, Ausgaben für Buchhaltung/Gehaltsberechnung)"]
[]
["Beleg-/ Buchungs-Nr.","Tag der Zahlung","Zahlungsgrund","Zahlungsempfänger","Ausgaben\n(in Euro)"]
{"$rows_empty":23}
["gesamt",{"$nulls":3},{"$f":"SUM(E9:E30)","v":0}]

{"sheet":"4.1 (5)","index":65,"n_rows":31,"n_cols":5,"rows_kept":31,"merged":[[2,2,2,3],[4,0,4,4],[6,0,7,0],[6,1,7,1],[6,2,7,2],[6,3,7,3],[6,4,7,4],[6,6,6,8],[30,0,30,3]]}
["Landeshauptstadt Dresden - Jugendamt",{"$nulls":3},{"$f":"Deckblatt!P1","v":"Förderung von Trägern der freien Jugendhilfe 2020"}]
[{"$nulls":3},"AZ:",{"$f":"Deckblatt!K4","v":0}]
[null,null,"Nachweis Sachausgabenbelege",null,{"$f":"Deckblatt!N9","v":2020}]
[null,null,"4.1 Verwaltungsaufwendungen im Angebot"]
["(z. B. Büromaterial, Porto, Ausgaben für öffentliche Bekanntmachungen, Anschaffung/Leasing/Wartung Bürotechnik, Ausgaben für Buchhaltung/Gehaltsberechnung)"]
[]
["Beleg-/ Buchungs-Nr.","Tag der Zahlung","Zahlungsgrund","Zahlungsempfänger","Ausgaben\n(in Euro)"]
{"$rows_empty":23}
["gesamt",{"$nulls":3},{"$f":"SUM(E9:E30)","v":0}]

{"sheet":"4.1 (6)","index":66,"n_rows":31,"n_cols":5,"rows_kept":31,"merged":[[2,2,2,3],[4,0,4,4],[6,0,7,0],[6,1,7,1],[6,2,7,2],[6,3,7,3],[6,4,7,4],[6,6,6,8],[30,0,30,3]]}
["Landeshauptstadt Dresden - Jugendamt",{"$nulls":3},{"$f":"Deckblatt!P1","v":"Förderung von Trägern der freien Jugendhilfe 2020"}]
[{"$nulls":3},"AZ:",{"$f":"Deckblatt!K4","v":0}]
[null,null,"Nachweis Sachausgabenbelege",null,{"$f":"Deckblatt!N9","v":2020}]
[null,null,"4.1 Verwaltungsaufwendungen im Angebot"]
["(z. B. Büromaterial, Porto, Ausgaben für öffentliche Bekanntmachungen, Anschaffung/Leasing/Wartung Bürotechnik, Ausgaben für Buchhaltung/Gehaltsberechnung)"]
[]
["Beleg-/ Buchungs-Nr.","Tag der Zahlung","Zahlungsgrund","Zahlungsempfänger","Ausgaben\n(in Euro)"]
{"$rows_empty":23}
["gesamt",{"$nulls":3},{"$f":"SUM(E9:E30)","v":0}]

{"sheet":"4.2","index":67,"n_rows":26,"n_cols":5,"rows_kept":26,"merged":[[2,2,2,3],[3,0,3,4],[4,0,4,4],[5,0,6,0],[5,1,6,1],[5,2,6,2],[5,3,6,3],[5,4,6,4],[25,0,25,3]]}
["Landeshauptstadt Dresden - Jugendamt",{"$nulls":3},{"$f":"Deckblatt!P1","v":"Förderung von Trägern der freien Jugendhilfe 2020"}]
[{"$nulls":3},"AZ:",{"$f":"Deckblatt!K4","v":0}]
[null,null,"Nachweis Sachausgabenbelege",null,"Blatt 1"]
["4.2 Verwaltungsumlage"]
["Sach- und Personalausgaben für zentrale Verwaltung, Planung, Steuerung und Kontrolle, die im Zusammenhang mit dem geförderten Angebot stehen; gefördert werden bis zu 10 % der Zuwendungssumme\n(entweder die Überweisung/Umbuchung des Gesamtbetrages oder von Teilbeträgen auf das Konto/die Haushaltstelle der zentralen Geschäftsführung hier aufführen oder es sind die Verwaltungsausaben im Einzelnen zu erfassen)"]
["Beleg-/ Buchungs-Nr.","Tag der Zahlung","Zahlungsgrund","Zahlungsempfänger","Ausgaben\n(in Euro)"]
[null,null,"(z. B. für Sport- und Spielmaterial)"]
{"$rows_empty":18}
["gesamt",{"$nulls":3},{"$f":"SUM(E8:E25)","v":0}]

{"sheet":"5.1 (1)","index":68,"n_rows":25,"n_cols":8,"rows_kept":25,"merged":[[5,7,5,9],[6,7,6,9],[7,7,7,9],[24,0,24,4]]}
["Landeshauptstadt Dresden - Jugendamt",{"$nulls":4},{"$f":"Deckblatt!P1","v":"Förderung von Trägern der freien Jugendhilfe 2020"}]
[{"$nulls":4},"AZ:",{"$f":"Deckblatt!K4","v":0}]
[null,null,"Nachweis Sachausgabenbelege",null,{"$f":"Deckblatt!N9","v":2020},"Blatt 1"]
[{"$nulls":3},"5.1 Bildungsmaßnahmen"]
[]
["Maßnahme-             zuordnung           (z.B. BM I Nr. 1*)","Beleg-/ Buchungs-Nr.","Tag der Zahlung","Zahlungsempfänger","Ausgabegrund\n(z. B. Fahrtkosten, Übernachtung, Referentenhonorar)","Ausgaben\n(in EUR)         ",null,"Bezeichnung in Spalte \"Maßnahmezurordnung\" (z. B. BM I Nr. 1) analog zum Verwendungsnachweis verwenden"]
[{"$nulls":7},"*  BM I: Bildungsmaßnahmen I - Seminare/Exkursionen  mit mind. 6 Seminar-/ Exkursionsstunden pro Tag"]
[{"$nulls":7},"BM II: Bildungsmaßnahmen II - Seminare mit mind. 3 Seminarstunden pro Tag"]
[{"$nulls":7}," Nr. 1, 2 usw.  - lfd. Nr. der durchgeführten Maßnahmen"]
{"$rows_empty":15}
["gesamt",{"$nulls":4},{"$f":"SUM(F7:F24)","v":0}]

{"sheet":"5.1 (2)","index":69,"n_rows":25,"n_cols":8,"rows_kept":25,"merged":[[5,7,5,9],[6,7,6,9],[7,7,7,9],[24,0,24,4]]}
["Landeshauptstadt Dresden - Jugendamt",{"$nulls":4},{"$f":"Deckblatt!P1","v":"Förderung von Trägern der freien Jugendhilfe 2020"}]
[{"$nulls":4},"AZ:",{"$f":"Deckblatt!K4","v":0}]
[null,null,"Nachweis Sachausgabenbelege",null,{"$f":"Deckblatt!N9","v":2020},"Blatt 2"]
[{"$nulls":3},"5.1 Bildungsmaßnahmen"]
[]
["Maßnahme-             zuordnung           (z.B. BM I Nr. 1*)","Beleg-/ Buchungs-Nr.","Tag der Zahlung","Zahlungsempfänger","Ausgabegrund\n(z. B. Fahrtkosten, Übernachtung, Referentenhonorar)","Ausgaben\n(in EUR)         ",null,"Bezeichnung in Spalte \"Maßnahmezurordnung\" (z. B. BM I Nr. 1) analog zum Verwendungsnachweis verwenden"]
[{"$nulls":7},"*  BM I: Bildungsmaßnahmen I - Seminare/Exkursionen  mit mind. 6 Seminar-/ Exkursionsstunden pro Tag"]
[{"$nulls":7},"BM II: Bildungsmaßnahmen II - Seminare mit mind. 3 Seminarstunden pro Tag"]
[{"$nulls":7}," Nr. 1, 2 usw.  - lfd. Nr. der durchgeführten Maßnahmen"]
{"$rows_empty":15}
["gesamt",{"$nulls":4},{"$f":"SUM(F7:F24)","v":0}]

{"sheet":"5.1 (3)","index":70,"n_rows":25,"n_cols":8,"rows_kept":25,"merged":[[5,7,5,9],[6,7,6,9],[7,7,7,9],[24,0,24,4]]}
["Landeshauptstadt Dresden - Jugendamt",{"$nulls":4},{"$f":"Deckblatt!P1","v":"Förderung von Trägern der freien Jugendhilfe 2020"}]
[{"$nulls":4},"AZ:",{"$f":"Deckblatt!K4","v":0}]
[null,null,"Nachweis Sachausgabenbelege",null,{"$f":"Deckblatt!N9","v":2020},"Blatt 3"]
[{"$nulls":3},"5.1 Bildungsmaßnahmen"]
[]
["Maßnahme-             zuordnung           (z.B. BM I Nr. 1*)","Beleg-/ Buchungs-Nr.","Tag der Zahlung","Zahlungsempfänger","Ausgabegrund\n(z. B. Fahrtkosten, Übernachtung, Referentenhonorar)","Ausgaben\n(in EUR)         ",null,"Bezeichnung in Spalte \"Maßnahmezurordnung\" (z. B. BM I Nr. 1) analog zum Verwendungsnachweis verwenden"]
[{"$nulls":7},"*  BM I: Bildungsmaßnahmen I - Seminare/Exkursionen  mit mind. 6 Seminar-/ Exkursionsstunden pro Tag"]
[{"$nulls":7},"BM II: Bildungsmaßnahmen II - Seminare mit mind. 3 Seminarstunden pro Tag"]
[{"$nulls":7}," Nr. 1, 2 usw.  - lfd. Nr. der durchgeführten Maßnahmen"]
{"$rows_empty":15}
["gesamt",{"$nulls":4},{"$f":"SUM(F7:F24)","v":0}]

{"sheet":"5.1 (4)","index":71,"n_rows":25,"n_cols":8,"rows_kept":25,"merged":[[5,7,5,9],[6,7,6,9],[7,7,7,9],[24,0,24,4]]}
["Landeshauptstadt Dresden - Jugendamt",{"$nulls":4},{"$f":"Deckblatt!P1","v":"Förderung von Trägern der freien Jugendhilfe 2020"}]
[{"$nulls":4},"AZ:",{"$f":"Deckblatt!K4","v":0}]
[null,null,"Nachweis Sachausgabenbelege",null,{"$f":"Deckblatt!N9","v":2020},"Blatt 4"]
[{"$nulls":3},"5.1 Bildungsmaßnahmen"]
[]
["Maßnahme-             zuordnung           (z.B. BM I Nr. 1*)","Beleg-/ Buchungs-Nr.","Tag der Zahlung","Zahlungsempfänger","Ausgabegrund\n(z. B. Fahrtkosten, Übernachtung, Referentenhonorar)","Ausgaben\n(in EUR)         ",null,"Bezeichnung in Spalte \"Maßnahmezurordnung\" (z. B. BM I Nr. 1) analog zum Verwendungsnachweis verwenden"]
[{"$nulls":7},"*  BM I: Bildungsmaßnahmen I - Seminare/Exkursionen  mit mind. 6 Seminar-/ Exkursionsstunden pro Tag"]
[{"$nulls":7},"BM II: Bildungsmaßnahmen II - Seminare mit mind. 3 Seminarstunden pro Tag"]
[{"$nulls":7}," Nr. 1, 2 usw.  - lfd. Nr. der durchgeführten Maßnahmen"]
{"$rows_empty":15}
["gesamt",{"$nulls":4},{"$f":"SUM(F7:F24)","v":0}]

{"sheet":"5.1 (5)","index":72,"n_rows":25,"n_cols":8,"rows_kept":25,"merged":[[5,7,5,9],[6,7,6,9],[7,7,7,9],[24,0,24,4]]}
["Landeshauptstadt Dresden - Jugendamt",{"$nulls":4},{"$f":"Deckblatt!P1","v":"Förderung von Trägern der freien Jugendhilfe 2020"}]
[{"$nulls":4},"AZ:",{"$f":"Deckblatt!K4","v":0}]
[null,null,"Nachweis Sachausgabenbelege",null,{"$f":"Deckblatt!N9","v":2020},"Blatt 5"]
[{"$nulls":3},"5.1 Bildungsmaßnahmen"]
[]
["Maßnahme-             zuordnung           (z.B. BM I Nr. 1*)","Beleg-/ Buchungs-Nr.","Tag der Zahlung","Zahlungsempfänger","Ausgabegrund\n(z. B. Fahrtkosten, Übernachtung, Referentenhonorar)","Ausgaben\n(in EUR)         ",null,"Bezeichnung in Spalte \"Maßnahmezurordnung\" (z. B. BM I Nr. 1) analog zum Verwendungsnachweis verwenden"]
[{"$nulls":7},"*  BM I: Bildungsmaßnahmen I - Seminare/Exkursionen  mit mind. 6 Seminar-/ Exkursionsstunden pro Tag"]
[{"$nulls":7},"BM II: Bildungsmaßnahmen II - Seminare mit mind. 3 Seminarstunden pro Tag"]
[{"$nulls":7}," Nr. 1, 2 usw.  - lfd. Nr. der durchgeführten Maßnahmen"]
{"$rows_empty":15}
["gesamt",{"$nulls":4},{"$f":"SUM(F7:F24)","v":0}]

{"sheet":"5.1 (6)","index":73,"n_rows":25,"n_cols":8,"rows_kept":25,"merged":[[5,7,5,9],[6,7,6,9],[7,7,7,9],[24,0,24,4]]}
["Landeshauptstadt Dresden - Jugendamt",{"$nulls":4},{"$f":"Deckblatt!P1","v":"Förderung von Trägern der freien Jugendhilfe 2020"}]
[{"$nulls":4},"AZ:",{"$f":"Deckblatt!K4","v":0}]
[null,null,"Nachweis Sachausgabenbelege",null,{"$f":"Deckblatt!N9","v":2020},"Blatt 6"]
[{"$nulls":3},"5.1 Bildungsmaßnahmen"]
[]
["Maßnahme-             zuordnung           (z.B. BM I Nr. 1*)","Beleg-/ Buchungs-Nr.","Tag der Zahlung","Zahlungsempfänger","Ausgabegrund\n(z. B. Fahrtkosten, Übernachtung, Referentenhonorar)","Ausgaben\n(in EUR)         ",null,"Bezeichnung in Spalte \"Maßnahmezurordnung\" (z. B. BM I Nr. 1) analog zum Verwendungsnachweis verwenden"]
[{"$nulls":7},"*  BM I: Bildungsmaßnahmen I - Seminare/Exkursionen  mit mind. 6 Seminar-/ Exkursionsstunden pro Tag"]
[{"$nulls":7},"BM II: Bildungsmaßnahmen II - Seminare mit mind. 3 Seminarstunden pro Tag"]
[{"$nulls":7}," Nr. 1, 2 usw.  - lfd. Nr. der durchgeführten Maßnahmen"]
{"$rows_empty":15}
["gesamt",{"$nulls":4},{"$f":"SUM(F7:F24)","v":0}]

{"sheet":"5.1 (7)","index":74,"n_rows":25,"n_cols":8,"rows_kept":25,"merged":[[5,7,5,9],[6,7,6,9],[7,7,7,9],[24,0,24,4]]}
["Landeshauptstadt Dresden - Jugendamt",{"$nulls":4},{"$f":"Deckblatt!P1","v":"Förderung von Trägern der freien Jugendhilfe 2020"}]
[{"$nulls":4},"AZ:",{"$f":"Deckblatt!K4","v":0}]
[null,null,"Nachweis Sachausgabenbelege",null,{"$f":"Deckblatt!N9","v":2020},"Blatt 7"]
[{"$nulls":3},"5.1 Bildungsmaßnahmen"]
[]
["Maßnahme-             zuordnung           (z.B. BM I Nr. 1*)","Beleg-/ Buchungs-Nr.","Tag der Zahlung","Zahlungsempfänger","Ausgabegrund\n(z. B. Fahrtkosten, Übernachtung, Referentenhonorar)","Ausgaben\n(in EUR)         ",null,"Bezeichnung in Spalte \"Maßnahmezurordnung\" (z. B. BM I Nr. 1) analog zum Verwendungsnachweis verwenden"]
[{"$nulls":7},"*  BM I: Bildungsmaßnahmen I - Seminare/Exkursionen  mit mind. 6 Seminar-/ Exkursionsstunden pro Tag"]
[{"$nulls":7},"BM II: Bildungsmaßnahmen II - Seminare mit mind. 3 Seminarstunden pro Tag"]
[{"$nulls":7}," Nr. 1, 2 usw.  - lfd. Nr. der durchgeführten Maßnahmen"]
{"$rows_empty":15}
["gesamt",{"$nulls":4},{"$f":"SUM(F7:F24)","v":0}]

{"sheet":"5.1 (8)","index":75,"n_rows":25,"n_cols":8,"rows_kept":25,"merged":[[5,7,5,9],[6,7,6,9],[7,7,7,9],[24,0,24,4]]}
["Landeshauptstadt Dresden - Jugendamt",{"$nulls":4},{"$f":"Deckblatt!P1","v":"Förderung von Trägern der freien Jugendhilfe 2020"}]
[{"$nulls":4},"AZ:",{"$f":"Deckblatt!K4","v":0}]
[null,null,"Nachweis Sachausgabenbelege",null,{"$f":"Deckblatt!N9","v":2020},"Blatt 8"]
[{"$nulls":3},"5.1 Bildungsmaßnahmen"]
[]
["Maßnahme-             zuordnung           (z.B. BM I Nr. 1*)","Beleg-/ Buchungs-Nr.","Tag der Zahlung","Zahlungsempfänger","Ausgabegrund\n(z. B. Fahrtkosten, Übernachtung, Referentenhonorar)","Ausgaben\n(in EUR)         ",null,"Bezeichnung in Spalte \"Maßnahmezurordnung\" (z. B. BM I Nr. 1) analog zum Verwendungsnachweis verwenden"]
[{"$nulls":7},"*  BM I: Bildungsmaßnahmen I - Seminare/Exkursionen  mit mind. 6 Seminar-/ Exkursionsstunden pro Tag"]
[{"$nulls":7},"BM II: Bildungsmaßnahmen II - Seminare mit mind. 3 Seminarstunden pro Tag"]
[{"$nulls":7}," Nr. 1, 2 usw.  - lfd. Nr. der durchgeführten Maßnahmen"]
{"$rows_empty":15}
["gesamt",{"$nulls":4},{"$f":"SUM(F7:F24)","v":0}]

{"sheet":"5.1 (9)","index":76,"n_rows":25,"n_cols":8,"rows_kept":25,"merged":[[5,7,5,9],[6,7,6,9],[7,7,7,9],[24,0,24,4]]}
["Landeshauptstadt Dresden - Jugendamt",{"$nulls":4},{"$f":"Deckblatt!P1","v":"Förderung von Trägern der freien Jugendhilfe 2020"}]
[{"$nulls":4},"AZ:",{"$f":"Deckblatt!K4","v":0}]
[null,null,"Nachweis Sachausgabenbelege",null,{"$f":"Deckblatt!N9","v":2020},"Blatt 9"]
[{"$nulls":3},"5.1 Bildungsmaßnahmen"]
[]
["Maßnahme-             zuordnung           (z.B. BM I Nr. 1*)","Beleg-/ Buchungs-Nr.","Tag der Zahlung","Zahlungsempfänger","Ausgabegrund\n(z. B. Fahrtkosten, Übernachtung, Referentenhonorar)","Ausgaben\n(in EUR)         ",null,"Bezeichnung in Spalte \"Maßnahmezurordnung\" (z. B. BM I Nr. 1) analog zum Verwendungsnachweis verwenden"]
[{"$nulls":7},"*  BM I: Bildungsmaßnahmen I - Seminare/Exkursionen  mit mind. 6 Seminar-/ Exkursionsstunden pro Tag"]
[{"$nulls":7},"BM II: Bildungsmaßnahmen II - Seminare mit mind. 3 Seminarstunden pro Tag"]
[{"$nulls":7}," Nr. 1, 2 usw.  - lfd. Nr. der durchgeführten Maßnahmen"]
{"$rows_empty":15}
["gesamt",{"$nulls":4},{"$f":"SUM(F7:F24)","v":0}]

{"sheet":"5.1 (10)","index":77,"n_rows":25,"n_cols":8,"rows_kept":25,"merged":[[5,7,5,9],[6,7,6,9],[7,7,7,9],[24,0,24,4]]}
["Landeshauptstadt Dresden - Jugendamt",{"$nulls":4},{"$f":"Deckblatt!P1","v":"Förderung von Trägern der freien Jugendhilfe 2020"}]
[{"$nulls":4},"AZ:",{"$f":"Deckblatt!K4","v":0}]
[null,null,"Nachweis Sachausgabenbelege",null,{"$f":"Deckblatt!N9","v":2020},"Blatt 10"]
[{"$nulls":3},"5.1 Bildungsmaßnahmen"]
[]
["Maßnahme-             zuordnung           (z.B. BM I Nr. 1*)","Beleg-/ Buchungs-Nr.","Tag der Zahlung","Zahlungsempfänger","Ausgabegrund\n(z. B. Fahrtkosten, Übernachtung, Referentenhonorar)","Ausgaben\n(in EUR)         ",null,"Bezeichnung in Spalte \"Maßnahmezurordnung\" (z. B. BM I Nr. 1) analog zum Verwendungsnachweis verwenden"]
[{"$nulls":7},"*  BM I: Bildungsmaßnahmen I - Seminare/Exkursionen  mit mind. 6 Seminar-/ Exkursionsstunden pro Tag"]
[{"$nulls":7},"BM II: Bildungsmaßnahmen II - Seminare mit mind. 3 Seminarstunden pro Tag"]
[{"$nulls":7}," Nr. 1, 2 usw.  - lfd. Nr. der durchgeführten Maßnahmen"]
{"$rows_empty":15}
["gesamt",{"$nulls":4},{"$f":"SUM(F7:F24)","v":0}]

{"sheet":"5.1 (11)","index":78,"n_rows":25,"n_cols":8,"rows_kept":25,"merged":[[5,7,5,9],[6,7,6,9],[7,7,7,9],[24,0,24,4]]}
["Landeshauptstadt Dresden - Jugendamt",{"$nulls":4},{"$f":"Deckblatt!P1","v":"Förderung von Trägern der freien Jugendhilfe 2020"}]
[{"$nulls":4},"AZ:",{"$f":"Deckblatt!K4","v":0}]
[null,null,"Nachweis Sachausgabenbelege",null,{"$f":"Deckblatt!N9","v":2020},"Blatt 11"]
[{"$nulls":3},"5.1 Bildungsmaßnahmen"]
[]
["Maßnahme-             zuordnung           (z.B. BM I Nr. 1*)","Beleg-/ Buchungs-Nr.","Tag der Zahlung","Zahlungsempfänger","Ausgabegrund\n(z. B. Fahrtkosten, Übernachtung, Referentenhonorar)","Ausgaben\n(in EUR)         ",null,"Bezeichnung in Spalte \"Maßnahmezurordnung\" (z. B. BM I Nr. 1) analog zum Verwendungsnachweis verwenden"]
[{"$nulls":7},"*  BM I: Bildungsmaßnahmen I - Seminare/Exkursionen  mit mind. 6 Seminar-/ Exkursionsstunden pro Tag"]
[{"$nulls":7},"BM II: Bildungsmaßnahmen II - Seminare mit mind. 3 Seminarstunden pro Tag"]
[{"$nulls":7}," Nr. 1, 2 usw.  - lfd. Nr. der durchgeführten Maßnahmen"]
{"$rows_empty":15}
["gesamt",{"$nulls":4},{"$f":"SUM(F7:F24)","v":0}]

{"sheet":"5.1 (12)","index":79,"n_rows":25,"n_cols":8,"rows_kept":25,"merged":[[5,7,5,9],[6,7,6,9],[7,7,7,9],[24,0,24,4]]}
["Landeshauptstadt Dresden - Jugendamt",{"$nulls":4},{"$f":"Deckblatt!P1","v":"Förderung von Trägern der freien Jugendhilfe 2020"}]
[{"$nulls":4},"AZ:",{"$f":"Deckblatt!K4","v":0}]
[null,null,"Nachweis Sachausgabenbelege",null,{"$f":"Deckblatt!N9","v":2020},"Blatt 12"]
[{"$nulls":3},"5.1 Bildungsmaßnahmen"]
[]
["Maßnahme-             zuordnung           (z.B. BM I Nr. 1*)","Beleg-/ Buchungs-Nr.","Tag der Zahlung","Zahlungsempfänger","Ausgabegrund\n(z. B. Fahrtkosten, Übernachtung, Referentenhonorar)","Ausgaben\n(in EUR)         ",null,"Bezeichnung in Spalte \"Maßnahmezurordnung\" (z. B. BM I Nr. 1) analog zum Verwendungsnachweis verwenden"]
[{"$nulls":7},"*  BM I: Bildungsmaßnahmen I - Seminare/Exkursionen  mit mind. 6 Seminar-/ Exkursionsstunden pro Tag"]
[{"$nulls":7},"BM II: Bildungsmaßnahmen II - Seminare mit mind. 3 Seminarstunden pro Tag"]
[{"$nulls":7}," Nr. 1, 2 usw.  - lfd. Nr. der durchgeführten Maßnahmen"]
{"$rows_empty":15}
["gesamt",{"$nulls":4},{"$f":"SUM(F7:F24)","v":0}]

{"sheet":"5.2 (1)","index":80,"n_rows":25,"n_cols":8,"rows_kept":25,"merged":[[5,7,5,9],[6,7,6,9],[24,0,24,4]]}
["Landeshauptstadt Dresden - Jugendamt",{"$nulls":4},{"$f":"Deckblatt!P1","v":"Förderung von Trägern der freien Jugendhilfe 2020"}]
[{"$nulls":5},{"$f":"Deckblatt!K4","v":0}]
[null,null,"Nachweis Sachausgabenbelege",null,{"$f":"Deckblatt!N9","v":2020},"Blatt 1"]
[{"$nulls":3},"5.2 erlebnispädagogische Maßnahmen"]
[]
["Maßnahme-             zuordnung            (z.B. EPM Nr. 1*)","Beleg-/ Buchungs-Nr.","Tag der Zahlung","Zahlungsempfänger","Ausgabegrund\n(z. B. Fahrtkosten, Übernachtung, Eintrittsgeld)","Ausgaben\n(in EUR)         ",null,"Bezeichnung in Spalte \"Maßnahmezurordnung\" (z. B. EPM Nr. 1) analog zum Verwendungsnachweis verwenden"]
[{"$nulls":7},"*  EPM: Erlebnispädagogische Maßnahme / Nr. 1, 2 usw.  - lfd. Nr. der durchgeführten Maßnahmen"]
[{"$nulls":7}," "]
{"$rows_empty":16}
["gesamt",{"$nulls":4},{"$f":"SUM(F7:F24)","v":0}]

{"sheet":"5.2 (2)","index":81,"n_rows":25,"n_cols":8,"rows_kept":25,"merged":[[5,7,5,9],[6,7,6,9],[24,0,24,4]]}
["Landeshauptstadt Dresden - Jugendamt",{"$nulls":4},{"$f":"Deckblatt!P1","v":"Förderung von Trägern der freien Jugendhilfe 2020"}]
[{"$nulls":5},{"$f":"Deckblatt!K4","v":0}]
[null,null,"Nachweis Sachausgabenbelege",null,{"$f":"Deckblatt!N9","v":2020},"Blatt 2"]
[{"$nulls":3},"5.2 erlebnispädagogische Maßnahmen"]
[]
["Maßnahme-             zuordnung            (z.B. EPM Nr. 1*)","Beleg-/ Buchungs-Nr.","Tag der Zahlung","Zahlungsempfänger","Ausgabegrund\n(z. B. Fahrtkosten, Übernachtung, Eintrittsgeld)","Ausgaben\n(in EUR)         ",null,"Bezeichnung in Spalte \"Maßnahmezurordnung\" (z. B. EPM Nr. 1) analog zum Verwendungsnachweis verwenden"]
[{"$nulls":7},"*  EPM: Erlebnispädagogische Maßnahme / Nr. 1, 2 usw.  - lfd. Nr. der durchgeführten Maßnahmen"]
[{"$nulls":7}," "]
{"$rows_empty":16}
["gesamt",{"$nulls":4},{"$f":"SUM(F7:F24)","v":0}]

{"sheet":"5.2 (3)","index":82,"n_rows":25,"n_cols":8,"rows_kept":25,"merged":[[5,7,5,9],[6,7,6,9],[24,0,24,4]]}
["Landeshauptstadt Dresden - Jugendamt",{"$nulls":4},{"$f":"Deckblatt!P1","v":"Förderung von Trägern der freien Jugendhilfe 2020"}]
[{"$nulls":5},{"$f":"Deckblatt!K4","v":0}]
[null,null,"Nachweis Sachausgabenbelege",null,{"$f":"Deckblatt!N9","v":2020},"Blatt 3"]
[{"$nulls":3},"5.2 erlebnispädagogische Maßnahmen"]
[]
["Maßnahme-             zuordnung            (z.B. EPM Nr. 1*)","Beleg-/ Buchungs-Nr.","Tag der Zahlung","Zahlungsempfänger","Ausgabegrund\n(z. B. Fahrtkosten, Übernachtung, Eintrittsgeld)","Ausgaben\n(in EUR)         ",null,"Bezeichnung in Spalte \"Maßnahmezurordnung\" (z. B. EPM Nr. 1) analog zum Verwendungsnachweis verwenden"]
[{"$nulls":7},"*  EPM: Erlebnispädagogische Maßnahme / Nr. 1, 2 usw.  - lfd. Nr. der durchgeführten Maßnahmen"]
[{"$nulls":7}," "]
{"$rows_empty":16}
["gesamt",{"$nulls":4},{"$f":"SUM(F7:F24)","v":0}]

{"sheet":"5.2 (4)","index":83,"n_rows":25,"n_cols":8,"rows_kept":25,"merged":[[5,7,5,9],[6,7,6,9],[24,0,24,4]]}
["Landeshauptstadt Dresden - Jugendamt",{"$nulls":4},{"$f":"Deckblatt!P1","v":"Förderung von Trägern der freien Jugendhilfe 2020"}]
[{"$nulls":5},{"$f":"Deckblatt!K4","v":0}]
[null,null,"Nachweis Sachausgabenbelege",null,{"$f":"Deckblatt!N9","v":2020},"Blatt 4"]
[{"$nulls":3},"5.2 erlebnispädagogische Maßnahmen"]
[]
["Maßnahme-             zuordnung            (z.B. EPM Nr. 1*)","Beleg-/ Buchungs-Nr.","Tag der Zahlung","Zahlungsempfänger","Ausgabegrund\n(z. B. Fahrtkosten, Übernachtung, Eintrittsgeld)","Ausgaben\n(in EUR)         ",null,"Bezeichnung in Spalte \"Maßnahmezurordnung\" (z. B. EPM Nr. 1) analog zum Verwendungsnachweis verwenden"]
[{"$nulls":7},"*  EPM: Erlebnispädagogische Maßnahme / Nr. 1, 2 usw.  - lfd. Nr. der durchgeführten Maßnahmen"]
[{"$nulls":7}," "]
{"$rows_empty":16}
["gesamt",{"$nulls":4},{"$f":"SUM(F7:F24)","v":0}]

{"sheet":"5.2 (5)","index":84,"n_rows":25,"n_cols":8,"rows_kept":25,"merged":[[5,7,5,9],[6,7,6,9],[24,0,24,4]]}
["Landeshauptstadt Dresden - Jugendamt",{"$nulls":4},{"$f":"Deckblatt!P1","v":"Förderung von Trägern der freien Jugendhilfe 2020"}]
[{"$nulls":5},{"$f":"Deckblatt!K4","v":0}]
[null,null,"Nachweis Sachausgabenbelege",null,{"$f":"Deckblatt!N9","v":2020},"Blatt 5"]
[{"$nulls":3},"5.2 erlebnispädagogische Maßnahmen"]
[]
["Maßnahme-             zuordnung            (z.B. EPM Nr. 1*)","Beleg-/ Buchungs-Nr.","Tag der Zahlung","Zahlungsempfänger","Ausgabegrund\n(z. B. Fahrtkosten, Übernachtung, Eintrittsgeld)","Ausgaben\n(in EUR)         ",null,"Bezeichnung in Spalte \"Maßnahmezurordnung\" (z. B. EPM Nr. 1) analog zum Verwendungsnachweis verwenden"]
[{"$nulls":7},"*  EPM: Erlebnispädagogische Maßnahme / Nr. 1, 2 usw.  - lfd. Nr. der durchgeführten Maßnahmen"]
[{"$nulls":7}," "]
{"$rows_empty":16}
["gesamt",{"$nulls":4},{"$f":"SUM(F7:F24)","v":0}]

{"sheet":"5.2 (6)","index":85,"n_rows":25,"n_cols":8,"rows_kept":25,"merged":[[5,7,5,9],[6,7,6,9],[24,0,24,4]]}
["Landeshauptstadt Dresden - Jugendamt",{"$nulls":4},{"$f":"Deckblatt!P1","v":"Förderung von Trägern der freien Jugendhilfe 2020"}]
[{"$nulls":5},{"$f":"Deckblatt!K4","v":0}]
[null,null,"Nachweis Sachausgabenbelege",null,{"$f":"Deckblatt!N9","v":2020},"Blatt 6"]
[{"$nulls":3},"5.2 erlebnispädagogische Maßnahmen"]
[]
["Maßnahme-             zuordnung            (z.B. EPM Nr. 1*)","Beleg-/ Buchungs-Nr.","Tag der Zahlung","Zahlungsempfänger","Ausgabegrund\n(z. B. Fahrtkosten, Übernachtung, Eintrittsgeld)","Ausgaben\n(in EUR)         ",null,"Bezeichnung in Spalte \"Maßnahmezurordnung\" (z. B. EPM Nr. 1) analog zum Verwendungsnachweis verwenden"]
[{"$nulls":7},"*  EPM: Erlebnispädagogische Maßnahme / Nr. 1, 2 usw.  - lfd. Nr. der durchgeführten Maßnahmen"]
[{"$nulls":7}," "]
{"$rows_empty":16}
["gesamt",{"$nulls":4},{"$f":"SUM(F7:F24)","v":0}]

{"sheet":"5.2 (7)","index":86,"n_rows":25,"n_cols":8,"rows_kept":25,"merged":[[5,7,5,9],[6,7,6,9],[24,0,24,4]]}
["Landeshauptstadt Dresden - Jugendamt",{"$nulls":4},{"$f":"Deckblatt!P1","v":"Förderung von Trägern der freien Jugendhilfe 2020"}]
[{"$nulls":5},{"$f":"Deckblatt!K4","v":0}]
[null,null,"Nachweis Sachausgabenbelege",null,{"$f":"Deckblatt!N9","v":2020},"Blatt 7"]
[{"$nulls":3},"5.2 erlebnispädagogische Maßnahmen"]
[]
["Maßnahme-             zuordnung            (z.B. EPM Nr. 1*)","Beleg-/ Buchungs-Nr.","Tag der Zahlung","Zahlungsempfänger","Ausgabegrund\n(z. B. Fahrtkosten, Übernachtung, Eintrittsgeld)","Ausgaben\n(in EUR)         ",null,"Bezeichnung in Spalte \"Maßnahmezurordnung\" (z. B. EPM Nr. 1) analog zum Verwendungsnachweis verwenden"]
[{"$nulls":7},"*  EPM: Erlebnispädagogische Maßnahme / Nr. 1, 2 usw.  - lfd. Nr. der durchgeführten Maßnahmen"]
[{"$nulls":7}," "]
{"$rows_empty":16}
["gesamt",{"$nulls":4},{"$f":"SUM(F7:F24)","v":0}]

{"sheet":"Personalausg. (1)","index":87,"n_rows":34,"n_cols":5,"rows_kept":34,"merged":[[5,6,7,8],[33,0,33,3]]}
["Landeshauptstadt Dresden - Jugendamt",{"$nulls":3},{"$f":"Deckblatt!P1","v":"Förderung von Trägern der freien Jugendhilfe 2020"}]
[{"$nulls":3},"AZ:",{"$f":"Deckblatt!K4","v":0}]
[null,null,"Nachweis Sachausgabenbelege",{"$f":"Deckblatt!N9","v":2020},"Blatt 1"]
[null,null,"Personalausgaben"]
[]
["Beleg-/ Buchungs-Nr.","Tag der Zahlung","Zahlungsempfänger/-in","Ausgabegrund\n(z. B. Jahres-Brutto-Lohnblatt)","Ausgaben\n(in EUR)         "]
{"$rows_empty":27}
["gesamt",{"$nulls":3},{"$f":"SUM(E7:E33)","v":0}]

{"sheet":"Personalausg. (2)","index":88,"n_rows":34,"n_cols":5,"rows_kept":34,"merged":[[5,6,7,8],[33,0,33,3]]}
["Landeshauptstadt Dresden - Jugendamt",{"$nulls":3},{"$f":"Deckblatt!P1","v":"Förderung von Trägern der freien Jugendhilfe 2020"}]
[{"$nulls":3},"AZ:",{"$f":"Deckblatt!K4","v":0}]
[null,null,"Nachweis Sachausgabenbelege",{"$f":"Deckblatt!N9","v":2020},"Blatt 2"]
[null,null,"Personalausgaben"]
[]
["Beleg-/ Buchungs-Nr.","Tag der Zahlung","Zahlungsempfänger/-in","Ausgabegrund\n(z. B. Jahres-Brutto-Lohnblatt)","Ausgaben\n(in EUR)         "]
{"$rows_empty":27}
["gesamt",{"$nulls":3},{"$f":"SUM(E7:E33)","v":0}]

{"sheet":"Personalausg. (3)","index":89,"n_rows":34,"n_cols":5,"rows_kept":34,"merged":[[5,6,7,8],[33,0,33,3]]}
["Landeshauptstadt Dresden - Jugendamt",{"$nulls":3},{"$f":"Deckblatt!P1","v":"Förderung von Trägern der freien Jugendhilfe 2020"}]
[{"$nulls":3},"AZ:",{"$f":"Deckblatt!K4","v":0}]
[null,null,"Nachweis Sachausgabenbelege",{"$f":"Deckblatt!N9","v":2020},"Blatt 3"]
[null,null,"Personalausgaben"]
[]
["Beleg-/ Buchungs-Nr.","Tag der Zahlung","Zahlungsempfänger/-in","Ausgabegrund\n(z. B. Jahres-Brutto-Lohnblatt)","Ausgaben\n(in EUR)         "]
{"$rows_empty":27}
["gesamt",{"$nulls":3},{"$f":"SUM(E7:E33)","v":0}]

{"sheet":"Personalausg. (4)","index":90,"n_rows":34,"n_cols":5,"rows_kept":34,"merged":[[5,6,7,8],[33,0,33,3]]}
["Landeshauptstadt Dresden - Jugendamt",{"$nulls":3},{"$f":"Deckblatt!P1","v":"Förderung von Trägern der freien Jugendhilfe 2020"}]
[{"$nulls":3},"AZ:",{"$f":"Deckblatt!K4","v":0}]
[null,null,"Nachweis Sachausgabenbelege",{"$f":"Deckblatt!N9","v":2020},"Blatt 4"]
[null,null,"Personalausgaben"]
[]
["Beleg-/ Buchungs-Nr.","Tag der Zahlung","Zahlungsempfänger/-in","Ausgabegrund\n(z. B. Jahres-Brutto-Lohnblatt)","Ausgaben\n(in EUR)         "]
{"$rows_empty":27}
["gesamt",{"$nulls":3},{"$f":"SUM(E7:E33)","v":0}]

{"sheet":"Personalausg. (5)","index":91,"n_rows":34,"n_cols":5,"rows_kept":34,"merged":[[5,6,7,8],[33,0,33,3]]}
["Landeshauptstadt Dresden - Jugendamt",{"$nulls":3},{"$f":"Deckblatt!P1","v":"Förderung von Trägern der freien Jugendhilfe 2020"}]
[{"$nulls":3},"AZ:",{"$f":"Deckblatt!K4","v":0}]
[null,null,"Nachweis Sachausgabenbelege",{"$f":"Deckblatt!N9","v":2020},"Blatt 5"]
[null,null,"Personalausgaben"]
[]
["Beleg-/ Buchungs-Nr.","Tag der Zahlung","Zahlungsempfänger/-in","Ausgabegrund\n(z. B. Jahres-Brutto-Lohnblatt)","Ausgaben\n(in EUR)         "]
{"$rows_empty":27}
["gesamt",{"$nulls":3},{"$f":"SUM(E7:E33)","v":0}]

{"sheet":"Personalausg. (6)","index":92,"n_rows":34,"n_cols":5,"rows_kept":34,"merged":[[5,6,7,8],[33,0,33,3]]}
["Landeshauptstadt Dresden - Jugendamt",{"$nulls":3},{"$f":"Deckblatt!P1","v":"Förderung von Trägern der freien Jugendhilfe 2020"}]
[{"$nulls":3},"AZ:",{"$f":"Deckblatt!K4","v":0}]
[null,null,"Nachweis Sachausgabenbelege",{"$f":"Deckblatt!N9","v":2020},"Blatt 6"]
[null,null,"Personalausgaben"]
[]
["Beleg-/ Buchungs-Nr.","Tag der Zahlung","Zahlungsempfänger/-in","Ausgabegrund\n(z. B. Jahres-Brutto-Lohnblatt)","Ausgaben\n(in EUR)         "]
{"$rows_empty":27}
["gesamt",{"$nulls":3},{"$f":"SUM(E7:E33)","v":0}]